Cogmind - Beta 16.1 @@@ ROGUE MODE // 2026.03.02 @ 02:54:13 Player: parasect Result: Heading to fleet! Performance ------------- Evolutions (9) 4500 Regions Visited (36) 7200 Robots Destroyed (530) 2650 Value Destroyed (26153) 26153 Prototype IDs (80) 1600 Alien Tech Used (7) 1400 Bonus (17678) 17678 TOTAL SCORE: 61181 Bonus ------- High Alert Combat Kills 1818 Follower Combat Kills 2263 Hunted by Unchained 500 Destroyed Unchained 1000 Entered Garrisons 400 Network Hubs Disabled 400 Met Data Miner 300 Met Imprinter 300 Acquired ECA 300 Met Warlord at Base 500 MAIN.C Attacked Warlord 500 Warlord Defense Kills 486 Built Enhanced Grunts 300 A7 Reached Mainframe 300 Met R17 at Cetus 500 Used Core Reset Matrix 3000 Met R17 at Research 2000 Met Warlord at Research 2000 Scanned by Researcher 500 Pursued by Intercept 500 Win 3000 Friendly Fire -3189 Cogmind --------- Core Integrity 596/1600 Matter 256/300 Energy 1080/1100 System Corruption 29% Temperature Cool (10) Movement Treading (160) Location To Fleet Rendezvous Parts ------- > --- POWER (3) -------- Reinforced Quantum Reactor Reinforced Quantum Reactor Reinforced Quantum Reactor > --- PROPULSION (6) --- Medium Treads Medium Treads Centrium Heavy Treads Centrium Heavy Treads > --- UTILITY (12) ----- Experimental Cooling System Experimental Cooling System Huge Storage Unit Experimental Sensor Array Experimental Signal Interpreter Improved Targeting Computer Experimental Core Analyzer Quantum Capacitor Experimental Transmission Jammer Graphene Brace Advanced Component Analysis Suite > --- WEAPON (4) ------- Core Cannon Railgun Enhanced Hardcell Cannon > --- INVENTORY (25) --- Quantum Reactor Wheel Advanced Heat Sink Advanced Heat Sink Small Battery (100) Experimental Energy Well (396) Matter Compressor (21) Terrain Scanner Advanced Powered Armor Advanced Point Defense System High-powered Transdimensional Reconstructor Microwarp Drive Quantum Rifle Helical Railgun Compact Tesla Bomb Launcher Peak State ------------ > --- POWER ------------ Reinforced Quantum Reactor Reinforced Quantum Reactor Reinforced Quantum Reactor > --- PROPULSION ------- Centrium Heavy Treads Advanced Heavy Siege Treads Advanced Heavy Siege Treads > --- UTILITY ---------- Experimental Cooling System Experimental Cooling System Huge Storage Unit Experimental Signal Interpreter Experimental Targeting Computer Experimental Core Analyzer Experimental Transmission Jammer Advanced Force Field Microwarp Drive > --- WEAPON ----------- Enhanced Nova Cannon Enhanced Hardcell Cannon Enhanced Hardcell Cannon > --- INVENTORY -------- Improved Quantum Reactor Centrium Heavy Treads Experimental Energy Well Matter Compressor Experimental Sensor Array Quantum Capacitor Centrium Heavy Armor Plating Advanced Powered Armor Graphene Brace Advanced Point Defense System Hacking Drone Bay High-powered Transdimensional Reconstructor High-powered Transdimensional Reconstructor Integrity Redistributor Subatomic Replicator Core Cannon Helical Railgun Compact Tesla Bomb Launcher [Rating: 230] Favorites ----------- Power Reinforced Quantum Reactor Engine Angular Momentum Engine Power Core Fission Core Reactor Reinforced Quantum Reactor Propulsion Light Treads Treads Light Treads Leg Armored Leg Wheel Compact Wheel Utility High-capacity Storage Unit Device Experimental Sensor Array Storage High-capacity Storage Unit Processor Advanced Targeting Computer Hackware Hacking Suite Protection Centrium Medium Armor Plating Artifact Microwarp Drive Weapon Gauss Rifle Energy Gun Small Laser Energy Cannon Heavy Plasma Cannon Ballistic Gun Gauss Rifle Ballistic Cannon Enhanced Hardcell Cannon Launcher Precision Grenade Launcher Special Weapon Remote Datajack Impact Weapon Great Maul Slashing Weapon Makeshift Axe Special Melee Weapon Datajack Build | -11 -10 -10 -9 -9 -9 -8 -8 -8 -8 -8 -7 -7 -7 -7 -6 -6 -6 -6 -6 -5 -5 -5 -5 -5 -5 -4 -4 -4 -4 -3 -3 -3 -2 -2 -2 -1 ------- Run | Yrd Mat Min Mat Min Exi Min Mat Gar Mat Gar Fac Low Low Dat Pro Fac Low Low Zio Pro Fac Ext Cet Arc Hub Fac Upp Upp War Pro Res Tes Res Qua Sec Acc Slots Evolved 18 | . . . 2 . . . 2 . . . 2 . . . . 2 . . . . 2 . . . . 2 . . . . 2 . 2 . . 2 Power 2 | . . . . . . . . . . . . . . . . 1 . . . . . . . . . . . . . . . . 1 . . . Propulsion 4 | . . . 1 . . . . . . . 1 . . . . . . . . . 1 . . . . 1 . . . . . . . . . . Utility 10 | . . . 1 . . . 1 . . . 1 . . . . 1 . . . . 1 . . . . 1 . . . . 2 . 1 . . 1 Weapon 2 | . . . . . . . 1 . . . . . . . . . . . . . . . . . . . . . . . . . . . . 1 Parts Attached 387 | 2 19 9 22 7 3 8 18 10 15 12 16 2 3 1 4 15 4 8 3 2 15 27 13 5 5 7 6 2 17 2 32 12 38 5 10 8 Power 47 | . 5 2 3 2 . 2 3 2 1 2 2 . . . . 5 . 2 . . . 5 1 1 1 1 . . 1 . . 3 3 . . . Engine 21 | . 5 2 3 2 . 1 2 . . 1 2 . . . . 2 . 1 . . . . . . . . . . . . . . . . . . Core 15 | . . . . . . 1 1 2 1 1 . . . . . 3 . 1 . . . 5 . . . . . . . . . . . . . . Reactor 11 | . . . . . . . . . . . . . . . . . . . . . . . 1 1 1 1 . . 1 . . 3 3 . . . Propulsion 104 | . 6 3 12 1 1 3 3 3 5 5 6 . 1 . . 4 1 3 . . 5 10 4 1 . 2 . 1 6 1 5 . 8 . 2 2 Treads 85 | . . . 11 1 1 1 3 3 5 5 6 . 1 . . 4 1 3 . . 4 10 1 1 . 2 . 1 4 1 4 . 8 . 2 2 Leg 18 | . 6 3 . . . 2 . . . . . . . . . . . . . . 1 . 3 . . . . . 2 . 1 . . . . . Wheel 1 | . . . 1 . . . . . . . . . . . . . . . . . . . . . . . . . . . . . . . . . Hover . | . . . . . . . . . . . . . . . . . . . . . . . . . . . . . . . . . . . . . Flight . | . . . . . . . . . . . . . . . . . . . . . . . . . . . . . . . . . . . . . Utility 142 | 1 6 3 3 4 . 2 6 2 4 1 3 1 . 1 2 5 1 2 2 1 7 8 4 2 2 3 5 1 5 1 18 5 19 3 6 3 Device 67 | 1 3 3 1 2 . . 4 . . . 1 . . . 2 1 1 . 1 . 3 4 . 2 1 . 4 . 3 1 9 3 12 1 3 1 Storage 8 | . 2 . 1 . . . . . . . . . . . . . . . . . . . . . . 1 . . . . 2 . 1 1 . . Processor 29 | . . . . . . 1 1 . 1 . 1 1 . . . 2 . 1 . 1 3 . . . 1 1 . 1 1 . 6 1 4 1 . 1 Hackware 6 | . . . . . . . . 1 . . . . . . . 1 . . 1 . . . . . . . . . . . . 1 1 . 1 . Protection 31 | . 1 . 1 2 . 1 1 1 3 1 1 . . 1 . 1 . 1 . . 1 4 4 . . 1 1 . 1 . 1 . 1 . 1 1 Artifact 1 | . . . . . . . . . . . . . . . . . . . . . . . . . . . . . . . . . . . 1 . Weapon 94 | 1 2 1 4 . 2 1 6 3 5 4 5 1 2 . 2 1 2 1 1 1 3 4 4 1 2 1 1 . 5 . 9 4 8 2 2 3 Energy Gun 7 | 1 . . 1 . . . 1 . 1 . . . . . . . . . . . . 1 . . . . 1 . . . 1 . . . . . Energy Cannon 14 | . . . . . . . 1 . . . . . . . 1 1 . 1 . . 1 . 1 . . 1 . . 2 . . . 3 1 . 1 Ballistic Gun 47 | . 2 1 3 . 1 1 2 2 3 3 2 . 1 . 1 . 2 . . . . 2 3 . 2 . . . 3 . 5 3 2 1 1 1 Ballistic Cannon 7 | . . . . . . . . . . . . . 1 . . . . . . . . . . . . . . . . . 2 . 2 . 1 1 Launcher 8 | . . . . . . . 1 . . 1 1 . . . . . . . 1 . 1 . . . . . . . . . 1 1 1 . . . Special Weapon 4 | . . . . . . . . . . . 1 . . . . . . . . 1 1 1 . . . . . . . . . . . . . . Impact Weapon 1 | . . . . . . . 1 . . . . . . . . . . . . . . . . . . . . . . . . . . . . . Slashing Weapon 3 | . . . . . . . . 1 1 . . 1 . . . . . . . . . . . . . . . . . . . . . . . . Piercing Weapon . | . . . . . . . . . . . . . . . . . . . . . . . . . . . . . . . . . . . . . Special Melee Weapon 3 | . . . . . 1 . . . . . 1 . . . . . . . . . . . . 1 . . . . . . . . . . . . Unidentified Prototypes 32 | . . 1 1 1 . . 1 . 1 . 1 . . . . 1 . . 1 . 1 1 5 . 1 . . . 7 . 2 . 6 1 . . Corrupted Parts 9 | . . . . . . . . . . . . . . . . . . . . . . . . 1 2 . . . 1 1 . 1 . . . 3 System Corruption 46 | . . . . . . . . . . . . . . . . . . . . . . . . 8 12 . . . 4 2 . 3 . . . 17 Parts Lost 54 | . 3 1 1 3 . 5 2 7 . 1 3 . . . 2 . 1 . . . . 4 . . 1 1 1 . 2 . 2 4 1 . 6 3 Power 9 | . 1 . . . . 1 . 2 . 1 1 . . . 1 . . . . . . . . . . . . . . . . 1 . . 1 . Propulsion 16 | . 1 . 1 1 . 2 1 2 . . 2 . . . . . . . . . . 1 . . . . . . . . 1 1 . . 2 1 Utility 18 | . 1 . . 2 . 1 . 1 . . . . . . 1 . 1 . . . . 1 . . 1 . 1 . 2 . 1 1 1 . 1 2 Weapon 11 | . . 1 . . . 1 1 2 . . . . . . . . . . . . . 2 . . . 1 . . . . . 1 . . 2 . Highest Loss Streak 5 | . 1 1 1 1 . 2 1 3 . 1 3 . . . 2 . 1 . . . . 2 . . 1 1 1 . 2 . 2 2 1 . 5 3 To Critical Strikes 1 | . . . . . . . . . . . . . . . . . . . . . . . . . . . . . . . . . . . 1 . Average Backups 20 | 6 16 19 21 24 24 23 24 21 24 24 19 19 20 20 19 19 18 18 18 18 18 19 19 17 18 17 16 17 16 17 19 21 21 19 18 16 Power 1 | 1 1 1 1 1 3 2 1 1 1 . . . . . . . 1 1 1 1 1 1 . 1 1 . 1 1 1 1 1 1 2 1 1 1 Propulsion 4 | 4 6 6 7 10 9 9 9 7 8 8 6 6 5 5 5 5 5 5 5 5 4 3 4 1 2 2 3 3 2 2 1 1 1 1 1 1 Utility 7 | . 4 4 5 6 6 7 7 6 9 8 6 6 7 8 7 6 4 6 7 8 7 9 8 8 8 7 6 7 6 7 9 10 10 8 8 8 Weapon 5 | 1 4 4 6 5 5 3 5 4 5 6 6 5 5 6 5 6 6 5 5 4 5 4 4 6 6 6 6 6 6 7 7 7 7 4 4 2 Tool/Special . | . . . . . . . . . . . . . . . . . . . . . . . . . . . . . . . . . . . . . Unused Backups 123 | 5 12 1 7 1 1 3 3 . 2 3 3 1 . . . . 1 1 3 . 4 5 5 . . 4 . . 2 1 20 7 6 6 6 10 Power 15 | 1 2 . . . . 3 2 . . 1 . . . . . . . . . . . 1 . . . . . . . . 2 . . 1 . 2 Propulsion 20 | 2 5 . . . . . . . . . . . . . . . . . . . 3 1 4 . . . . . . . . . 2 . 2 1 Utility 54 | 1 4 . . 1 1 . 1 . . 2 2 1 . . . . 1 1 2 . 1 2 1 . . 2 . . 1 1 10 5 4 1 4 5 Weapon 33 | 1 1 1 7 . . . . . 2 . 1 . . . . . . . 1 . . 1 . . . 2 . . 1 . 8 2 . 4 . 1 Tool/Special 1 | . . . . . . . . . . . . . . . . . . . . . . . . . . . . . . . . . . . . 1 Average Slot Usage (%) 95 | . 99 100 98 99 88 94 99 98 99 99 99 100 100 93 98 97 100 99 100 99 98 99 93 82 94 93 93 94 91 89 89 90 87 85 83 73 Engine 3 | . 13 14 11 11 11 1 . 1 . 2 6 7 7 7 5 2 . 3 6 6 5 1 . . . . . . . . . . . . . . Core 3 | . . . . . . 7 8 7 9 6 . . . . . 7 13 9 6 6 5 9 10 5 5 5 5 5 3 . . . . . . . Reactor 2 | . . . . . . . . . . . . . . . . . . . . . . . . 5 5 5 5 5 4 5 4 6 13 13 12 12 Treads 21 | . . . 29 32 33 25 21 26 27 27 29 30 30 30 30 26 26 25 26 26 26 25 19 8 11 14 15 15 16 21 21 20 15 13 13 14 Leg 3 | . 28 28 2 . . 5 4 . . . . . . . . . . . . . 1 2 5 11 11 10 10 10 8 5 . . . . . . Device 12 | . 11 14 11 8 . . 8 1 . . 5 7 6 7 6 5 5 13 12 12 10 11 12 15 16 14 15 14 14 18 21 22 21 24 23 23 Storage 6 | . 14 14 11 11 11 11 9 9 9 9 7 7 7 7 7 6 6 6 6 6 5 5 5 5 5 5 5 5 5 5 4 4 4 4 5 4 Processor 11 | . . . . . . 8 9 9 9 9 14 15 15 15 15 19 13 13 13 13 17 15 11 11 11 15 15 15 15 15 15 14 15 13 13 10 Hackware 1 | . . . . . . . . 8 9 9 7 7 7 7 7 6 3 . . . . . . . . . . . . . . . . . . . Protection 5 | . 2 . 11 13 20 12 9 7 8 9 1 . . . . . 8 6 6 6 5 5 5 5 5 5 4 5 5 2 3 4 4 4 2 1 Energy Gun 1 | . 18 1 5 . . . . 1 . . . . . . . . . . . . . 1 . . . . . 5 2 . . . . . . . Energy Cannon 1 | . . . . . . . . . . . . . . . 1 6 5 6 . 5 4 3 1 2 4 4 4 5 2 4 . . . 3 3 . Ballistic Gun 13 | . 9 26 16 22 3 22 26 18 24 19 16 15 15 1 14 12 8 12 13 12 10 10 15 5 10 9 9 5 7 10 9 9 9 8 3 5 Peak Build Rating 230 | 7 12 19 23 27 22 24 28 32 34 34 48 50 51 52 53 67 69 71 70 72 85 89 118 120 122 135 137 133 146 143 177 187 211 214 230 213 Average Rating 88 | 6 9 12 19 20 18 21 26 28 32 32 39 49 50 48 50 59 67 67 68 69 80 81 99 99 116 129 131 130 131 142 165 178 203 212 213 187 On Entrance 79 | 6 7 10 14 21 20 22 23 24 28 32 30 42 46 51 47 49 62 64 70 65 70 82 85 118 118 109 128 133 128 142 143 176 184 210 213 185 Avg Prop Armor Cover (%) 5 | . . . 10 . . 4 4 . . . . . . . . 9 . . . . 3 3 6 8 7 6 6 7 5 2 2 4 . . 6 . Naked Turns . | . . . . . . . . . . . . . . . . . . . . . . . . . . . . . . . . . . . . . Heaviest Build 244 | 11 54 52 97 97 93 94 102 103 103 107 67 67 67 67 72 91 93 92 94 98 96 108 109 108 109 109 112 106 135 129 167 183 229 231 244 210 Greatest Support 240 | 20 20 20 60 60 60 60 60 69 69 60 87 87 90 90 90 90 86 92 92 92 132 127 154 108 108 140 140 140 162 162 197 214 235 235 240 240 Greatest Overweight (x) 4 | . 2 2 3 1 1 2 2 2 1 1 . . . . . 1 1 1 1 1 1 1 1 2 1 . . . 4 . 1 1 1 . 1 1 Average Overweight (x) . | . 1 2 . 1 1 1 1 1 1 1 . . . . . . . . . . . . . . . . . . . . . . . . . . Largest Inventory Capacity 25 | 8 20 20 25 25 25 25 25 25 25 25 25 20 20 20 20 20 20 20 20 20 20 20 20 20 20 20 20 20 20 20 25 25 25 25 25 25 Average Capacity 22 | 8 19 20 23 25 25 25 25 25 25 25 20 20 20 20 20 20 20 20 20 20 20 20 20 20 20 20 20 20 20 20 23 25 25 25 25 25 Most Carried 25 | 8 20 20 25 25 25 25 25 24 25 25 22 20 20 20 20 20 20 20 20 20 20 20 20 20 20 20 20 20 20 20 25 25 25 25 25 24 Average Carried 21 | 6 16 19 21 24 24 23 24 21 24 24 19 19 19 20 19 19 19 19 19 19 19 19 19 19 19 19 19 19 19 19 22 24 24 24 23 20 Final Capacity 25 | 8 20 20 25 25 25 25 25 25 25 25 20 20 20 20 20 20 20 20 20 20 20 20 20 20 20 20 20 20 20 20 25 25 25 25 25 25 Final Carried 25 | 8 19 20 25 24 24 24 25 21 25 23 20 20 20 20 20 19 20 20 20 20 20 20 20 20 20 20 20 20 20 20 25 25 25 25 19 17 Class Distribution -------------------- 24% | Scavenger-Tank 18% | Mutant 13% | Scavenger-Mutant 9% | Commander-Skirmisher 7% | Skirmisher 7% | Tank 7% | Scavenger-Gunner 4% | Gunner Dominant Class ---------------- Mutant | -10/Materials Scavenger-Mutant | -10/Mines Scavenger-Mutant | -9/Materials Mutant | -9/Mines Mutant | -9/Exiles Scavenger-Mutant | -8/Mines Scavenger-Gunner | -8/Materials Mutant | -8/Garrison Gunner | -8/Materials Scavenger-Mutant | -8/Garrison Scavenger-Mutant | -7/Factory Mutant | -7/Lower Caves Mutant | -7/Lower Caves Mutant | -7/Data Miner Mutant | -6/Proximity Caves Skirmisher | -6/Factory Skirmisher | -6/Lower Caves Commander-Skirmisher | -6/Lower Caves Commander-Skirmisher | -6/Zion Commander-Skirmisher | -5/Proximity Caves Skirmisher | -5/Factory Scavenger-Tank | -5/Extension Commander-Tank | -5/Cetus Scavenger-Mutant | -5/Archives Scavenger-Tank | -5/Hub_04(d) Scavenger-Tank | -4/Factory Scavenger-Tank | -4/Upper Caves Scavenger-Tank | -4/Upper Caves Commander-Tank | -4/Warlord Derelict-Tank | -3/Proximity Caves Tank | -3/Research Scavenger-Tank | -3/Testing Scavenger-Tank | -2/Research Scavenger-Tank | -2/Quarantine Scavenger-Tank | -2/Section 7 Scavenger-Mutant | -1/Access Resources | -11 -10 -10 -9 -9 -9 -8 -8 -8 -8 -8 -7 -7 -7 -7 -6 -6 -6 -6 -6 -5 -5 -5 -5 -5 -5 -4 -4 -4 -4 -3 -3 -3 -2 -2 -2 -1 ----------- Run | Yrd Mat Min Mat Min Exi Min Mat Gar Mat Gar Fac Low Low Dat Pro Fac Low Low Zio Pro Fac Ext Cet Arc Hub Fac Upp Upp War Pro Res Tes Res Qua Sec Acc Matter Collected 23153 | 220 580 223 688 686 94 368 723 513 777 1189 943 175 209 . 366 251 376 472 95 108 865 1547 368 266 930 719 500 88 546 110 1969 1801 1581 670 1748 389 Remotely 2545 | . . . . . . . . . . . . . . . . . . . . . . . . . . . . . . . 1081 1464 . . . . Salvage Created 25028 | 131 1007 318 1278 307 . 651 727 725 900 729 952 64 89 . 612 221 192 55 122 70 1208 2200 304 279 1193 1212 498 133 152 14 1895 1461 2033 800 2022 474 Parts 1248 | 8 52 17 86 11 . 28 46 49 54 57 32 1 5 . 25 14 3 1 . 2 60 98 14 15 63 51 19 4 . . 81 95 81 59 87 30 Haulers Intercepted 19 | . 2 . 3 . . . 2 . 3 . 1 . . . . . . . . . 4 . . . . . . . . . 2 1 . . 1 . Recyclers Shooed 18 | . 1 . . 1 . . 1 . 4 . 1 . . . . 2 . . . . 1 1 . . . 3 . . . . . 1 . . . 2 Parts Field Recycled . | . . . . . . . . . . . . . . . . . . . . . . . . . . . . . . . . . . . . . Retrieved Matter . | . . . . . . . . . . . . . . . . . . . . . . . . . . . . . . . . . . . . . Parts Self-Destructed 51 | . . . . . . . . . . . . 1 7 . 11 . 3 7 . 2 . . . . . . 16 4 . . . . . . . . Prevented . | . . . . . . . . . . . . . . . . . . . . . . . . . . . . . . . . . . . . . Parts Restored 1 | . . . . . . . . . . . . . . . . . . . . . . . . . . . . . . . 1 . . . . . Broken 1 | . . . . . . . . . . . . . . . . . . . . . . . . . . . . . . . 1 . . . . . Kills | -11 -10 -10 -9 -9 -9 -8 -8 -8 -8 -8 -7 -7 -7 -7 -6 -6 -6 -6 -6 -5 -5 -5 -5 -5 -5 -4 -4 -4 -4 -3 -3 -3 -2 -2 -2 -1 ------- Run | Yrd Mat Min Mat Min Exi Min Mat Gar Mat Gar Fac Low Low Dat Pro Fac Low Low Zio Pro Fac Ext Cet Arc Hub Fac Upp Upp War Pro Res Tes Res Qua Sec Acc Combat Hostiles Destroyed 404 | . 20 5 25 22 . 8 15 34 14 27 8 . 2 . 18 1 6 . . 1 9 30 3 . 17 11 6 2 3 2 24 19 28 11 28 5 Melee 2 | . . . . . . . . . . . . . . . . . . . . . 1 . . . . . . . . . . . . . 1 . Guns 244 | . 20 5 25 22 . 8 12 8 14 13 8 . 2 . 3 . 2 . . 1 5 16 3 . 11 5 3 . . 1 14 10 23 3 4 3 Cannons 74 | . . . . . . . . . . . . . . . . . 1 . . . 3 4 . . 5 6 3 2 3 . 10 5 3 8 20 1 AOE 76 | . . . . . . . 2 26 . 14 . . . . 15 . 3 . . . . 10 . . . . . . . 1 . 4 1 . . . Classes Destroyed 28 | 2 5 . 3 1 . 2 1 2 2 1 . . 1 . . . 1 . . . . 1 . . . . . . . 1 3 . . . 2 . Worker 22 | . . . 2 1 . . 3 . 3 . . . . . . . . . . . 3 1 . . 2 2 . . . . 2 3 . . . . Builder 22 | . . . . . . . 1 . . . 2 . . . . 1 . . . . 6 3 . . . 1 . . . . 1 3 . . 1 3 Tunneler 10 | 4 . . 1 1 . . . . . . . . . . . 2 . . . . . . . . . 1 . . . . 1 . . . . . Hauler 19 | . 2 . 3 . . . 2 . 3 . 1 . . . . . . . . . 4 . . . . . . . . . 2 1 . . 1 . Recycler 30 | 1 3 2 2 . . 3 1 . . . 5 . . . . 1 . . . . 2 3 . . . 2 . . . . 1 1 . . 2 1 Mechanic 1 | . . . 1 . . . . . . . . . . . . . . . . . . . . . . . . . . . . . . . . . Operator 16 | . 1 . . . . . 1 . 1 . . . . . . 1 . . . . . 2 . 8 . 1 . . . . 1 . . . . . Drone 2 | . . . . . . . . . . . . . . . . . . . . . . . . . . . . . . 2 . . . . . . Watcher 20 | . 2 . 3 . . . 1 1 3 . . . . . . . . . . . 1 2 . . . 3 . . . . . 2 . 1 1 . Swarmer 92 | . 6 . 7 4 . . 8 18 2 11 . . . . 10 . 3 . . . 5 4 . . . . . . . . 3 4 2 . 5 . Saboteur 3 | . . . . . . . . 3 . . . . . . . . . . . . . . . . . . . . . . . . . . . . Grunt 115 | . 14 5 13 . . 5 4 7 5 7 4 . . . 6 . 1 . . 1 . 14 . . 4 3 3 2 1 . 4 2 7 . 3 . Brawler 4 | . . . . . . 1 . . . . . . . . . . . . . . 1 . . . . . . . . . . . 1 . 1 . Duelist 6 | . . . . . . . . . 2 . 2 . . . . . . . . . . 1 . . . . . . . . . . . . 1 . Protector 2 | . . . . . . . . . 1 . . . . . . . . . . . . . . . 1 . . . . . . . . . . . Researcher 1 | . . . . . . . . . . . . . . . . . . . . . . . . . . . . . . . . . . . 1 . Sentry 46 | . . . 5 . . . 3 2 3 5 1 . 1 . 1 . 1 . . . 1 9 . . 2 2 1 . . . 1 . 2 . 5 1 Demolisher 3 | . . . . . . . . . . . . . . . . . . . . . . . . . . . . . . . 1 . 2 . . . Specialist 1 | . . . . . . . . 1 . . . . . . . . . . . . . . . . . . . . . . . . . . . . Hunter 18 | . . . . . . 2 . 3 1 1 . . . . . . . . . . . 1 . . . . 2 . . . . 3 1 2 2 . Programmer 60 | . . . . . . . . . . 3 1 . . . 1 1 . . . . 3 . . . 4 6 . . . . 4 9 7 9 9 3 Behemoth 4 | . . . . . . . . . . . . . . . . . . . . . . 1 . . . . . . 2 . . . . . . 1 Cetus Guard 3 | . . . . . . . . . . . . . . . . . . . . . . . 3 . . . . . . . . . . . . . Lightning 6 | . . . . . . . . . . . . . . . . . . . . . . . . . 6 . . . . . . . . . . . Striker 10 | . . . . . . . . . . . . . . . . . . . . . . . . . . . . . . . 8 . 2 . . . Executioner 7 | . . . . . . . . . . . . . . . . . . . . . . . . . . . . . . . 3 . 4 . . . Alpha 7 2 | . . . . . . . . . . . . . . . . . . . . . . . . . . . . . . . . . . . 2 . Decomposer 1 | . . . . . . . . . . . . . . . . . . . . . . . . . . . 1 . . . . . . . . . Thief 1 | . . . . . . . . . . . . . 1 . . . . . . . . . . . . . . . . . . . . . . . Assembled 18 | . . . . 18 . . . . . . . . . . . . . . . . . . . . . . . . . . . . . . . . Wasp 1 | . . . . . . . . . . . . . . . . . . . . . . . . . . . . . . . . . 1 . . . Mutant 1 | . . . . . . . . . . . . . . . . . 1 . . . . . . . . . . . . . . . . . . . Best Kill Streak 13 | 3 8 2 7 6 . 3 6 8 4 5 4 . 1 . 13 2 3 . . 1 7 4 3 3 3 6 3 2 2 2 10 6 6 4 8 6 Combat Bots Only 13 | . 7 2 7 5 . 3 4 8 4 5 3 . 1 . 13 1 3 . . 1 5 4 3 . 3 3 3 2 2 2 10 5 6 4 7 3 Max Kills in Single Turn 5 | 1 2 1 2 1 . 1 2 5 2 3 1 . 1 . 4 1 2 . . 1 2 4 1 1 1 3 1 1 1 1 2 5 2 1 2 2 Gunslinging 1 | . . . . . . . . 1 . 1 . . . . . . . . . . . . . . . . . . . . . . 1 . . . Exploded 5 | . . . . . . . 2 5 . 3 . . . . 4 . 2 . . . . 4 . . . . . . . 1 . 4 1 . . . Melee 1 | . . . . . . . . . . . . . . . . . . . . . 1 . . . . . . . . . . . . . 1 . Uniques/NPCs Destroyed 2 | . . . . . . . . . . . . . . . . . . . . . . . 1 . . . . . . . . 1 . . . . A7 (-5/Cetus) BL-1NK (-3/Testing) Combat | -11 -10 -10 -9 -9 -9 -8 -8 -8 -8 -8 -7 -7 -7 -7 -6 -6 -6 -6 -6 -5 -5 -5 -5 -5 -5 -4 -4 -4 -4 -3 -3 -3 -2 -2 -2 -1 -------- Run | Yrd Mat Min Mat Min Exi Min Mat Gar Mat Gar Fac Low Low Dat Pro Fac Low Low Zio Pro Fac Ext Cet Arc Hub Fac Upp Upp War Pro Res Tes Res Qua Sec Acc Hostile Shots Fired 2535 | . 86 16 84 66 . 75 60 92 49 87 67 . 20 . 50 4 21 . . 1 26 120 39 1 92 66 59 14 43 . 91 247 161 102 500 196 Missed 545 | . 15 . 21 19 . 16 18 21 9 20 22 . 8 . 10 1 8 . . 1 5 30 16 . 4 11 8 1 6 . 21 61 43 26 88 36 Hits 1990 | . 71 16 63 47 . 59 42 71 40 67 45 . 12 . 40 3 13 . . . 21 90 23 1 88 55 51 13 37 . 70 186 118 76 412 160 Melee 64 | . . . . 18 . . . . 1 . 18 . 1 . . . . . . . . 1 . . . . . . . . 17 . 4 . 4 . Projectile 1926 | . 71 16 63 29 . 59 42 71 39 67 27 . 11 . 40 3 13 . . . 21 89 23 1 88 55 51 13 37 . 53 186 114 76 408 160 AOE 5 | . . . . . . . . . . . . . . . . . . . . . . . . . . . . . . . . . 5 . . . Critical Strikes 122 | . 1 . 2 . . 4 3 1 2 8 4 . . . 3 1 . . . . 1 4 2 . 7 6 3 . 1 . 8 9 6 7 33 6 Actively Blocked 42 | . . . . . . . . . . . . . . . . . . . . . . . . . . . . . . . . . 1 7 28 6 Part Disruptions 11 | . . . . . . . . . . 1 . . . . . . . . . . . . . . 1 . . . . . . 3 . 1 4 1 Damage Taken 31906 | . 756 213 746 902 . 956 520 1124 631 1028 968 . 123 . 566 46 157 . . . 395 1531 457 51 1428 798 1042 285 804 40 1553 2111 1779 882 6601 3413 Core 3085 | . 64 14 50 19 . 89 46 109 126 123 85 . 9 . 72 . 13 . . . 53 88 . 15 144 44 84 . 20 20 289 241 186 59 833 190 Absorbed by Shields 9175 | . . . . . . . . . . . 8 . 17 . 137 . . . . . . 425 164 20 457 . . . 364 . 1096 1266 1505 927 2789 . Reduced by Siege Mode 1303 | . . . . . . . . . . . . . . . . . . . . . . . . 6 114 38 47 34 27 . 75 52 100 158 327 325 Redirected to Shielding 12 | . . . . . . 12 . . . . . . . . . . . . . . . . . . . . . . . . . . . . . . Ignored by Resistances 2459 | . . . . . . . . . 6 24 14 . 9 . . . . . . . . 84 . . 999 327 . . . . . 996 . . . . Regen/Repaired (Parts) 4786 | . 41 . 67 . . . 132 . 11 . . . . . . . . . . . . . . . . 752 . . 114 . 867 277 19 109 . 2397 Core Remaining (%) 64 | 100 . 68 . . . 60 . . . 26 . . . . 76 . . . . 98 . . . . 70 . . . . 85 . 59 . . 25 37 Volleys Fired 1689 | 16 72 15 94 55 . 47 36 42 46 60 42 . 6 3 22 24 34 16 8 14 67 98 46 67 91 131 24 32 22 2 68 77 73 89 118 32 Largest 3 | 2 2 2 2 2 . 2 3 3 3 3 3 . 3 1 3 3 3 1 1 3 3 3 3 3 3 3 3 3 3 2 3 3 3 3 3 2 Hottest 300 | 80 80 63 79 46 . 46 109 111 74 79 75 . 93 5 146 146 148 90 90 146 146 187 90 160 158 173 173 234 120 70 128 128 183 196 236 300 Shots Fired 3327 | 32 144 30 187 110 . 95 104 78 133 109 109 1 13 3 36 29 48 16 8 16 115 234 74 83 206 189 56 43 56 4 172 193 186 145 230 40 Gun 2226 | 32 144 30 187 110 . 95 102 61 133 89 106 1 10 . 23 5 19 . . 2 48 165 42 20 126 57 32 11 44 3 116 125 156 61 48 23 Cannon 1018 | . . . . . . . . . . . . . 2 . 5 24 26 16 7 14 66 62 32 63 80 132 24 32 12 . 56 66 28 84 175 12 Launcher 75 | . . . . . . . 2 17 . 20 . . 1 . 8 . 3 . . . . 7 . . . . . . . 1 . 2 2 . 7 5 Special 8 | . . . . . . . . . . . 3 . . 3 . . . . 1 . 1 . . . . . . . . . . . . . . . Kinetic 2243 | . 55 27 112 110 . 95 100 44 133 89 106 1 12 . 24 5 21 . . 2 57 135 42 20 126 57 32 7 44 3 170 191 171 75 154 23 Thermal 977 | 26 89 3 75 . . . 2 17 . . . . . . 4 24 24 16 7 14 57 92 32 63 80 132 24 36 . . . . 9 70 69 12 Explosive 59 | . . . . . . . 2 17 . 20 . . 1 . 8 . 3 . . . . 7 . . . . . . . 1 . . . . . . Electromagnetic 26 | 6 . . . . . . . . . . . . . . . . . . . . . . . . . . . . . . . 2 6 . 7 5 Entropic 14 | . . . . . . . . . . . . . . . . . . . . . . . . . . . . . 12 . 2 . . . . . Robot Hit Streak 34 | 14 9 9 13 7 . 28 15 20 21 19 10 . 4 1 16 18 12 5 12 3 31 30 22 12 14 15 23 9 20 2 25 17 34 34 33 14 Robot Miss Streak 8 | 4 6 3 7 5 . 3 2 2 4 2 3 . 1 2 1 1 1 . . 4 1 4 3 8 3 2 1 1 3 . 5 4 3 5 3 3 Penetration Max 2 | . . . . . . . . . . . . . . . . 1 . . . . 1 1 1 1 1 1 . . 1 . 2 1 1 . 1 1 Secondary Targets 31 | . 1 2 . 2 . 1 3 2 2 4 2 . . . 1 . . . . . . 1 2 . . . . . . . 1 1 6 . . . Max Gunslinging Chain 2 | . 1 1 . 1 . 1 1 2 1 1 1 . . . 1 . . . . . . 1 1 . . . . . . . 1 1 1 . . . Capacitor 18 | . . . . . . . . . . . . . . . . . . . . . . . . . . . . . . . . . . . 8 10 Shots Hit Robots 2147 | 19 94 25 130 66 4 75 76 49 98 76 85 1 10 1 35 8 19 2 7 3 68 164 57 46 127 84 42 15 35 1 125 131 131 67 142 29 Core Hits 1061 | 6 52 17 59 39 . 25 36 50 46 41 30 1 4 . 44 7 9 2 1 2 34 87 23 19 50 38 18 6 10 2 52 74 68 18 77 14 Critical Kills 48 | . . 1 1 . . . 3 1 2 . . . . . . 1 . . . . 1 4 . . 7 5 . . . . 8 6 8 . . . Critical Parts Destroyed 49 | . . . 1 . . 2 3 . 4 . . . . . . . . . . . . . 1 1 4 3 2 . 1 . 4 8 9 2 . 4 Critical Strikes 133 | . . 1 3 . . 2 6 2 6 . 2 . . . . 1 1 . . . 2 4 1 3 12 8 2 . 2 . 18 21 18 2 8 8 Burn 2 | . . . 1 . . . . 1 . . . . . . . . . . . . . . . . . . . . . . . . . . . . Meltdown 6 | . . . . . . . . . . . . . . . . 1 . . . . 1 1 . . 1 1 . . . . . . 1 . . . Destroy 102 | . . 1 2 . . 2 4 1 6 . . . . . . . . . . . . 3 1 3 11 7 2 . 1 . 15 16 17 2 . 8 Blast 18 | . . . . . . . . . . . . . . . . . 1 . . . 1 . . . . . . . . . 3 5 . . 8 . Smash 2 | . . . . . . . 2 . . . . . . . . . . . . . . . . . . . . . . . . . . . . . Sever 2 | . . . . . . . . . . . 2 . . . . . . . . . . . . . . . . . . . . . . . . . Sunder 1 | . . . . . . . . . . . . . . . . . . . . . . . . . . . . . 1 . . . . . . . Melee Attacks 166 | . . . . . 4 . 5 23 2 25 23 29 17 . 34 . . . . . . . . 4 . . . . . . . . . . . . Impact 29 | . . . . . . . 5 23 1 . . . . . . . . . . . . . . . . . . . . . . . . . . . Slashing 129 | . . . . . . . . . 1 25 23 29 17 . 34 . . . . . . . . . . . . . . . . . . . . . Piercing . | . . . . . . . . . . . . . . . . . . . . . . . . . . . . . . . . . . . . . Sneak Attacks 17 | . . . . . 4 . 2 . . . 6 . 1 . . . . . . . . . . 4 . . . . . . . . . . . . Combat Hostiles . | . . . . . . . . . . . . . . . . . . . . . . . . . . . . . . . . . . . . . Follow-up Attacks . | . . . . . . . . . . . . . . . . . . . . . . . . . . . . . . . . . . . . . Damage Inflicted 66194 | 253 1289 343 2021 1069 . 1023 1513 2010 1642 2476 1773 52 328 . 2271 287 683 71 191 82 2056 5412 1599 1555 3610 3156 1192 473 1501 89 3877 4802 5209 2478 6390 3418 Guns 34307 | 221 1287 343 2005 1020 . 1020 1245 644 1509 1153 1289 . 108 . 360 87 250 . . 18 919 2419 856 425 1985 1346 544 219 715 21 2599 2676 4229 1129 1055 611 Cannons 21989 | . . . . . . . . . . . . . 25 . 66 200 190 63 191 64 1096 1645 743 1127 1618 1781 648 254 770 . 1215 1400 487 1349 4457 2600 Explosions 7867 | 27 . . . . . . 54 1366 . 1323 . . 50 . 1421 . 243 . . . . 1335 . . . . . . . 57 . 558 493 . 828 112 Melee 1341 | . . . . . . . 214 . 29 . 477 52 145 . 424 . . . . . . . . . . . . . . . . . . . . . Ramming 690 | 5 2 . 16 49 . 3 . . 104 . 7 . . . . . . 8 . . 41 13 . 3 7 29 . . 16 11 63 168 . . 50 95 Kinetic 37980 | . 673 313 1162 1020 . 1020 1228 433 1509 1153 1289 . 133 . 360 87 277 . . 18 1146 1902 856 425 1985 1346 544 136 715 21 3753 4076 4420 1129 4240 611 Thermal 17521 | 194 614 30 843 . . . 17 211 . . . . . . 66 200 163 63 191 64 869 2162 743 1127 1618 1781 648 337 . . . 57 194 1349 1380 2600 Explosive 5988 | . . . . . . . 54 1366 . 1323 . . 50 . 1421 . 243 . . . . 1335 . . . . . . . 57 . . . . 139 . Electromagnetic 1843 | 54 . . . . . . . . . . . . . . . . . . . . . . . . . . . . . . . 501 595 . 581 112 Impact 243 | . . . . . . . 214 . 29 . . . . . . . . . . . . . . . . . . . . . . . . . . . Slashing 1098 | . . . . . . . . . . . 477 52 145 . 424 . . . . . . . . . . . . . . . . . . . . . Piercing . | . . . . . . . . . . . . . . . . . . . . . . . . . . . . . . . . . . . . . Entropic 831 | . . . . . . . . . . . . . . . . . . . . . . . . . . . . . 770 . 61 . . . . . Highest Corruption 45 | . . . . 2 2 2 . . . 2 2 2 2 2 2 . . . . . 1 . . 8 27 3 3 . 4 6 2 8 4 12 45 29 Average Corruption 4 | . . . . 2 2 2 . . . 1 2 2 2 2 2 . . . . . 1 . . 5 6 2 2 . 4 4 1 4 3 7 18 26 Corruption Purged 14 | . . . . . . . . . . . . . . . . . . . . . 1 . . 8 . . 3 . . . 2 . . . . . Corruption Blocked . | . . . . . . . . . . . . . . . . . . . . . . . . . . . . . . . . . . . . . Effects 437 | . . . . 11 9 21 . . . 30 7 21 13 1 20 . . . . . 1 . . 7 23 20 9 . 7 23 2 30 42 37 80 23 Message Errors 108 | . . . . 5 2 9 . . . 11 4 10 3 1 7 . . . . . 1 . . 2 3 1 1 . . 2 . 4 12 12 15 3 Matter Fused 91 | . . . . 2 1 3 . . . 7 . 6 2 . 5 . . . . . . . . 2 3 3 5 . 2 10 1 6 11 4 16 2 Heat Flow Errors 56 | . . . . 3 2 1 . . . 1 . 2 1 . 1 . . . . . . . . . 2 5 2 . 4 2 1 5 7 2 11 4 Energy Discharges 52 | . . . . . 1 2 . . . 4 1 1 3 . 5 . . . . . . . . . 4 1 . . . 2 . 6 3 3 9 7 Parts Rejected 6 | . . . . . . . . . . . 2 . . . . . . . . . . . . . 1 1 . . . . . . . 1 1 . Parts Fused 6 | . . . . . . 1 . . . 2 . . . . . . . . . . . . . 1 . 2 . . . . . . . . . . Data Loss (minor) 46 | . . . . . . 3 . . . 4 . . 1 . 1 . . . . . . . . 2 1 4 1 . 1 3 . 5 4 4 11 1 Data Loss (major) 22 | . . . . 1 2 1 . . . . . 1 2 . . . . . . . . . . . 2 . . . . 2 . 3 3 3 1 1 Misfires 13 | . . . . . . 1 . . . . . 1 . . 1 . . . . . . . . . . 1 . . . 1 . . 1 2 4 1 Alerts 10 | . . . . . 1 . . . . 1 . . 1 . . . . . . . . . . . 1 1 . . . 1 . . 1 1 1 1 Misdirections 9 | . . . . . . . . . . . . . . . . . . . . . . . . . 2 . . . . . . . . 1 6 . Weapon Failures 18 | . . . . . . . . . . . . . . . . . . . . . . . . . 4 1 . . . . . 1 . 4 5 3 Overload Shots . | . . . . . . . . . . . . . . . . . . . . . . . . . . . . . . . . . . . . . Overflow Damage 1463 | 5 . . . . . . 78 46 9 108 135 . 50 . 84 10 3 11 40 12 42 36 15 46 46 45 80 . 35 12 28 21 27 180 92 167 Projectiles 845 | . . . . . . . . . . . . . . . . 10 . 11 40 12 42 20 15 46 46 45 80 . 35 . 8 11 27 180 92 125 Explosions 199 | 5 . . . . . . . 46 . 108 . . . . 9 . 3 . . . . 16 . . . . . . . 12 . . . . . . Melee 419 | . . . . . . . 78 . 9 . 135 . 50 . 75 . . . . . . . . . . . . . . . 20 10 . . . 42 Knockbacks 44 | . . . 1 . . . 1 . 1 . . . . . . . . . . . 1 . . . . . . . . . 8 14 1 . 16 1 Impact 5 | . . . 1 . . . 1 . 1 . . . . . . . . . . . . . . . . . . . . . . . . . 1 1 Kinetic 35 | . . . . . . . . . . . . . . . . . . . . . . . . . . . . . . . 7 14 1 . 13 . Secondary 4 | . . . . . . . . . . . . . . . . . . . . . 1 . . . . . . . . . 1 . . . 2 . Self-Inflicted Damage 405 | . . . . . . . 6 62 . 65 . . 52 . . . . . . . . . . . . . . . . . . 78 . . 120 22 Shots 19 | . . . . . . . 1 3 . 2 . . 1 . . . . . . . . . . . . . . . . . . 7 . . 4 1 Rammed 50 | . . . 2 4 . 3 . . 13 . . . . . . . . 1 . . 4 2 . 1 1 1 . . 1 1 2 8 . . 3 3 Targets Rammed 66 | 4 1 . 3 4 . 3 . . 15 . 1 . . . . . . 1 . . 6 4 . 1 1 1 . . 1 1 4 8 . . 4 3 Kicked 5 | 4 1 . . . . . . . . . . . . . . . . . . . . . . . . . . . . . . . . . . . Crushed 11 | . . . 1 . . . . . 2 . 1 . . . . . . . . . 2 2 . . . . . . . . 2 . . . 1 . Highest Temperature 491 | 180 169 . 19 183 164 154 60 102 264 266 132 244 157 . 229 192 162 16 16 34 63 194 115 186 304 229 246 290 221 187 192 209 279 457 435 491 Average Temperature 62 | 77 46 . 4 20 76 25 16 27 56 46 41 97 58 . 62 55 56 6 7 11 12 55 57 57 54 45 61 197 110 104 99 57 78 92 130 137 Received Heat Transfer 3712 | . 345 117 309 40 . 288 198 135 234 288 108 . 30 . 74 . . . . . . 385 30 12 141 183 186 48 99 12 20 201 71 . 131 27 Effects 14 | . . . . . . . . . 1 . . . . . . . . . . . . . . . 1 . . . . . . . . 2 6 4 Shutdowns 2 | . . . . . . . . . . . . . . . . . . . . . . . . . . . . . . . . . . 2 . . Energy Bleed 3 | . . . . . . . . . 1 . . . . . . . . . . . . . . . . . . . . . . . . . 2 . Interference 8 | . . . . . . . . . . . . . . . . . . . . . . . . . 1 . . . . . . . . . 3 4 Short Circuit 1 | . . . . . . . . . . . . . . . . . . . . . . . . . . . . . . . . . . . 1 . Siege Activations 61 | . . . . . . . . . . . . . . . . . . . . . . . . 3 7 5 3 1 2 . 7 9 9 6 7 2 Total Turns 1067 | . . . . . . . . . . . . . . . . . . . . . . . . 37 167 87 54 25 31 . 146 112 103 86 134 85 Longest Duration 100 | . . . . . . . . . . . . . . . . . . . . . . . . 26 100 27 24 25 29 . 37 27 27 27 47 49 Martial Activations . | . . . . . . . . . . . . . . . . . . . . . . . . . . . . . . . . . . . . . Shielding Activations . | . . . . . . . . . . . . . . . . . . . . . . . . . . . . . . . . . . . . . Robots Disrupted . | . . . . . . . . . . . . . . . . . . . . . . . . . . . . . . . . . . . . . Combat Hostiles . | . . . . . . . . . . . . . . . . . . . . . . . . . . . . . . . . . . . . . Robots Corrupted 8 | . . . . . . . 1 . . . . . . . . . . . . . . . . . . . . . . . 1 1 . . 3 2 Combat Hostiles 5 | . . . . . . . 1 . . . . . . . . . . . . . . . . . . . . . . . . . . . 3 1 Parts Fried 22 | . . . . . . . 3 . . . . . . . . . . . . . . 1 . . . . . . . . 3 7 2 . 4 2 Impact Corruptions 9 | . . . . . . . 3 . 1 . . . . . . . . . . . . . . . . . . . . . 1 2 . . 1 1 Robots Melted 6 | . . . . . . . . . . . . . . . . 1 . . . . 1 1 . . 1 1 . . . . . . 1 . . . Combat Hostiles 3 | . . . . . . . . . . . . . . . . 1 . . . . . . . . 1 . . . . . . . 1 . . . Parts Melted 29 | . 1 . 1 . . . . . . . . . . . . 5 . . . . 1 7 . . 3 3 . . . . . . 4 2 2 . Heat Transferred 17720 | 425 1375 75 2146 . . . 37 518 . . . . . . 100 300 250 100 300 100 888 2738 465 1221 1388 1776 666 370 . . . 112 185 1036 1149 . Parts Sabotaged . | . . . . . . . . . . . . . . . . . . . . . . . . . . . . . . . . . . . . . Parts Stolen . | . . . . . . . . . . . . . . . . . . . . . . . . . . . . . . . . . . . . . Parts Stripped . | . . . . . . . . . . . . . . . . . . . . . . . . . . . . . . . . . . . . . Power Chain Reactions 4 | 1 . . . . . . . . . . . . . . . . . . . . . . . . . . . . . . . 2 . . 1 . Alert | -11 -10 -10 -9 -9 -9 -8 -8 -8 -8 -8 -7 -7 -7 -7 -6 -6 -6 -6 -6 -5 -5 -5 -5 -5 -5 -4 -4 -4 -4 -3 -3 -3 -2 -2 -2 -1 ------- Run | Yrd Mat Min Mat Min Exi Min Mat Gar Mat Gar Fac Low Low Dat Pro Fac Low Low Zio Pro Fac Ext Cet Arc Hub Fac Upp Upp War Pro Res Tes Res Qua Sec Acc Maximum Alert Level 5 | . 1 . 1 . . . . 5 3 5 3 . . . . . . . . . . 2 2 1 2 1 . . . . 2 2 2 1 3 2 Low Security (%) 55 | 100 74 100 91 100 . 100 100 3 . . . . . . . 100 . . . . 100 47 . 76 18 80 . . . . 89 9 33 64 38 . Level 1 16 | . 25 . 8 . . . . 9 25 9 . . . . . . . . . . . 26 93 23 30 19 . . . . 1 75 10 35 8 93 Level 2 17 | . . . . . . . . 25 59 30 . . . . . . . . . . . 26 6 . 50 . . . . . 8 15 56 . 40 6 Level 3 7 | . . . . . . . . 32 15 35 100 . . . . . . . . . . . . . . . . . . . . . . . 12 . Level 4 2 | . . . . . . . . 19 . 19 . . . . . . . . . . . . . . . . . . . . . . . . . . Level 5 . | . . . . . . . . 7 . 5 . . . . . . . . . . . . . . . . . . . . . . . . . . High Security . | . . . . . . . . . . . . . . . . . . . . . . . . . . . . . . . . . . . . . Max Security . | . . . . . . . . . . . . . . . . . . . . . . . . . . . . . . . . . . . . . Peak Influence 1835 | 10 268 85 262 90 . 62 140 1733 849 1835 963 . . . . 137 . . . . 125 584 422 238 642 298 . . . . 466 433 509 296 761 416 Initial 963 | . . 85 14 . . . . 76 844 271 963 . . . . 137 . . . . . 50 320 91 . 298 . . . . 150 254 228 191 148 416 Average 273 | 1 100 11 104 4 . 9 33 862 491 917 814 . . . . 22 . . . . 26 235 318 107 357 164 . . . . 84 299 308 185 389 346 Influence Increases 16801 | 25 670 166 929 100 . 230 520 1727 463 1574 376 5 25 . 385 119 110 6 10 26 410 1308 390 357 1130 475 140 65 137 10 1006 989 910 619 1162 227 Destroy 0b10 Robot/C 8420 | . 400 120 540 80 . 160 300 680 260 660 220 . 20 . 360 20 100 . . 20 200 680 160 80 400 220 120 40 120 . 480 520 560 220 580 100 Destroy 0b10 Robot/NC 805 | 25 40 10 60 10 . 15 45 5 55 . 40 5 5 . 5 25 . 5 10 . 85 60 10 40 40 50 . . . 10 40 60 . 5 25 20 Destroy Leader 1454 | . 78 30 142 10 . 40 66 20 82 40 32 . . . 20 10 10 . . . 42 86 . . 96 66 20 10 . . 124 84 140 52 134 20 Allied During Kill 931 | . . 6 8 . . . . . . 29 5 . . . . . . 1 . 6 11 236 155 120 279 . . . 17 . . 58 . . . . Trap Triggered on 0b10 10 | . . . . . . . 10 . . . . . . . . . . . . . . . . . . . . . . . . . . . . . Successful Hack 475 | . 32 . 27 . . . 10 34 6 32 35 . . . . 17 . . . . 1 . . . . 24 . . . . 114 107 . 24 12 . Select Force Hacks 120 | . 60 . 60 . . . . . . . . . . . . . . . . . . . . . . . . . . . . . . . . . Disable Machine 945 | . . . 15 . . 15 30 15 15 30 15 . . . . 15 . . . . 15 45 15 75 180 15 . . . . 30 30 15 180 135 60 Anti-Garrison Action 1500 | . . . . . . . . 800 . 700 . . . . . . . . . . . . . . . . . . . . . . . . . . Destroy Structure 1511 | . . . 2 . . . 14 128 . 83 14 . . . . 17 . . . . 56 156 50 42 120 100 . . . . 38 130 180 138 216 27 Advance Influence 150 | . . . . . . . . . . . . . . . . . . . . . . . . . . . . . . . 150 . . . . . Partial Spotted 45 | . . . . . . . . 30 . . . . . . . . . . . . . . . . 15 . . . . . . . . . . . Lose Combat Pursuer 435 | . 60 . 75 . . . 45 15 45 . 15 . . . . 15 . . . . . 45 . . . . . 15 . . 30 . 15 . 60 . Influence Decreases 16476 | 25 450 349 963 103 . 230 403 111 1778 157 1432 784 25 . 167 337 110 6 10 26 306 838 736 585 520 878 347 65 125 22 554 1034 976 696 732 596 Entered New Map 4248 | . . 135 23 3 . . . 41 889 147 872 289 . . . 81 . . . . . 54 254 137 . 312 78 . . 12 . 198 179 150 116 278 Time Decay 10159 | 25 420 204 540 100 . 230 393 . 589 . 470 495 25 . 147 241 110 6 10 26 288 524 362 388 430 556 259 65 49 10 534 586 707 546 546 278 Lost Part 426 | . 30 10 10 . . . 10 70 . 10 30 . . . 20 . . . . . . 30 . . 10 10 10 . 16 . 20 40 10 . 60 30 Lost Ally 677 | . . . 24 . . . . . . . 60 . . . . 15 . . . . 18 80 120 60 80 . . . 60 . . 60 80 . 10 10 Purge Threat 966 | . . . 366 . . . . . 300 . . . . . . . . . . . . 150 . . . . . . . . . 150 . . . . Squads Dispatched 68 | . 4 1 4 . . 1 . . 1 . 4 . . . . 4 . . . . 5 2 . . 8 5 . . . . 4 8 1 6 8 2 Investigation 11 | . 3 1 3 . . . . . . . . . . . . 1 . . . . . . . . . . . . . . 3 . . . . . Extermination 31 | . . . . . . . . . . . 3 . . . . 3 . . . . 4 . . . 2 3 . . . . . 5 . 5 4 2 Reinforcement 19 | . 1 . 1 . . 1 . . . . 1 . . . . . . . . . 1 2 . . 2 2 . . . . 1 3 1 1 2 . Assault 3 | . . . . . . . . . 1 . . . . . . . . . . . . . . . 1 . . . . . . . . . 1 . Garrison 3 | . . . . . . . . . . . . . . . . . . . . . . . . . 3 . . . . . . . . . . . Intercept 1 | . . . . . . . . . . . . . . . . . . . . . . . . . . . . . . . . . . . 1 . Searches Triggered . | . . . . . . . . . . . . . . . . . . . . . . . . . . . . . . . . . . . . . Unchained Authorized 2 | . . . . . . . . . . . . . . . . . . . . . . . . . . 1 . . . . . 1 . . . . Data Miner Redirects 1 | . . . . . . . . . . . . . . . . 1 . . . . . . . . . . . . . . . . . . . . Construction Impeded 3 | . . . . . . 1 . . . . . . . . . . . . . . 1 . . . . . . . . . . . . . 1 . Haulers Reinforced 2 | . . . . . . . . . . . 1 . . . . . . . . . . . . . 1 . . . . . . . . . . . Active Scanning Responses . | . . . . . . . . . . . . . . . . . . . . . . . . . . . . . . . . . . . . . Cargo Convoy Interrupts . | . . . . . . . . . . . . . . . . . . . . . . . . . . . . . . . . . . . . . Stealth | -11 -10 -10 -9 -9 -9 -8 -8 -8 -8 -8 -7 -7 -7 -7 -6 -6 -6 -6 -6 -5 -5 -5 -5 -5 -5 -4 -4 -4 -4 -3 -3 -3 -2 -2 -2 -1 --------- Run | Yrd Mat Min Mat Min Exi Min Mat Gar Mat Gar Fac Low Low Dat Pro Fac Low Low Zio Pro Fac Ext Cet Arc Hub Fac Upp Upp War Pro Res Tes Res Qua Sec Acc Distress Signals 36 | . . . 5 . . . 1 . 3 . 1 . . . . 1 . . . . 1 3 2 . . 1 . . . . 7 1 7 . 2 1 Communications Jammed 160 | . . . . . . . . . . . . . . . . . . . . . 2 5 . . 51 25 . 1 . . . 19 . 1 56 . Distress Signals 158 | . . . . . . . . . . . . . . . . . . . . . 2 5 . . 51 25 . 1 . . . 17 . 1 56 . Times Spotted 655 | . 32 7 49 22 . 8 22 23 34 24 14 . 2 . 16 4 6 . . 1 16 40 11 29 27 23 6 3 30 2 38 37 46 17 59 7 Peak Tracking Total 14 | . 5 2 8 4 . 3 5 5 5 4 4 . 1 . 10 3 3 . . 1 5 4 5 1 4 6 3 3 12 2 7 9 7 3 14 3 Tactical Retreats 25 | . 3 . 3 . . . 3 1 3 . 1 . . . . 1 . . . . . 3 . . . . . 1 . . 1 . 2 . 3 . ID Masks Used 1 | . . . . . . . . . . . . . . . . . . . . . . . . . . . . . . . . . . 1 . . IFF Responses 76 | . . . . . . . . . . . . . . . . . . . . . . . . . . . . . . . . . . 62 14 . Traps | -11 -10 -10 -9 -9 -9 -8 -8 -8 -8 -8 -7 -7 -7 -7 -6 -6 -6 -6 -6 -5 -5 -5 -5 -5 -5 -4 -4 -4 -4 -3 -3 -3 -2 -2 -2 -1 ------- Run | Yrd Mat Min Mat Min Exi Min Mat Gar Mat Gar Fac Low Low Dat Pro Fac Low Low Zio Pro Fac Ext Cet Arc Hub Fac Upp Upp War Pro Res Tes Res Qua Sec Acc Traps Triggered 17 | . 1 . 1 . . . . 9 . 3 1 . . . . . . . . . . . . . 1 . . . . . 1 . . . . . Indirectly . | . . . . . . . . . . . . . . . . . . . . . . . . . . . . . . . . . . . . . Trap Hack Attempts 23 | . . . . . . . 23 . . . . . . . . . . . . . . . . . . . . . . . . . . . . . Triggered . | . . . . . . . . . . . . . . . . . . . . . . . . . . . . . . . . . . . . . Disarmed 1 | . . . . . . . 1 . . . . . . . . . . . . . . . . . . . . . . . . . . . . . Reprogrammed 2 | . . . . . . . 2 . . . . . . . . . . . . . . . . . . . . . . . . . . . . . Reused 1 | . . . . . . . 1 . . . . . . . . . . . . . . . . . . . . . . . . . . . . . Traps Extracted . | . . . . . . . . . . . . . . . . . . . . . . . . . . . . . . . . . . . . . Installed . | . . . . . . . . . . . . . . . . . . . . . . . . . . . . . . . . . . . . . Triggered 1 | . . . . . . . 1 . . . . . . . . . . . . . . . . . . . . . . . . . . . . . Machines | -11 -10 -10 -9 -9 -9 -8 -8 -8 -8 -8 -7 -7 -7 -7 -6 -6 -6 -6 -6 -5 -5 -5 -5 -5 -5 -4 -4 -4 -4 -3 -3 -3 -2 -2 -2 -1 ---------- Run | Yrd Mat Min Mat Min Exi Min Mat Gar Mat Gar Fac Low Low Dat Pro Fac Low Low Zio Pro Fac Ext Cet Arc Hub Fac Upp Upp War Pro Res Tes Res Qua Sec Acc Machines Disabled 87 | . . . 1 . . 1 2 8 1 11 1 . . . 2 1 1 . . . 1 3 1 5 12 1 . . . . 2 4 1 12 12 4 Max in Single Turn 3 | . . . 1 . . 1 1 2 1 2 1 . . . 1 1 1 . . . 1 1 1 1 1 1 . . . . 1 1 1 1 2 3 Garrison Access 4 | . . . . . . . . . . . . . . . . . . . . . . . . . . 1 . . . . . . 2 . . 1 Garrison Relay 13 | . . . . . . . . 5 . 8 . . . . . . . . . . . . . . . . . . . . . . . . . . Phase Generator 1 | . . . . . . . . 1 . . . . . . . . . . . . . . . . . . . . . . . . . . . . Network Hub 2 | . . . . . . . . . . . . . . . . . . . . . . . . . 2 . . . . . . . . . . . Machines Repaired . | . . . . . . . . . . . . . . . . . . . . . . . . . . . . . . . . . . . . . Machines Dismantled 4 | . . . . . . . . . . . . . . . . . . . . . . 1 1 . 2 . . . . . . . . . . . Machines Sabotaged . | . . . . . . . . . . . . . . . . . . . . . . . . . . . . . . . . . . . . . Overloaded Fab Kills . | . . . . . . . . . . . . . . . . . . . . . . . . . . . . . . . . . . . . . Hacking | -11 -10 -10 -9 -9 -9 -8 -8 -8 -8 -8 -7 -7 -7 -7 -6 -6 -6 -6 -6 -5 -5 -5 -5 -5 -5 -4 -4 -4 -4 -3 -3 -3 -2 -2 -2 -1 --------- Run | Yrd Mat Min Mat Min Exi Min Mat Gar Mat Gar Fac Low Low Dat Pro Fac Low Low Zio Pro Fac Ext Cet Arc Hub Fac Upp Upp War Pro Res Tes Res Qua Sec Acc Machines Accessed 105 | . 9 1 9 1 1 . 7 4 6 4 8 . 1 3 . 4 1 2 1 . 5 2 . . 1 4 1 . 4 1 7 7 1 4 4 2 Terminals 36 | . 6 . 5 . . . 3 4 3 4 2 . . . . 2 1 . . . . . . . . 1 . . . 1 . . . 2 1 1 Fabricators 8 | . . . . . . . . . . . 2 . . . . 2 . . . . 1 . . . . . . . . . 1 2 . . . . Repair Stations 14 | . 1 . 1 . . . 1 . 1 . . . . . . . . . . . 3 . . . . 1 . . . . 3 2 . 1 . . Recycling Units 10 | . 2 . 2 . . . . . . . 3 . . . . . . . . . 1 2 . . . . . . . . . . . . . . Scanalyzers 12 | . . . 1 . . . 2 . 1 . . . . . . . . . . . . . . . . 1 . . . . 2 2 . 1 2 . Garrison Access 10 | . . . . . . . 1 . 1 . 1 . . . . . . . . . . . . . 1 1 . . . . 1 1 1 . 1 1 Total Hacks 291 | . 24 1 26 1 1 . 18 8 30 12 18 . 1 20 . 10 1 4 6 . 8 3 . . 1 17 1 . 10 1 18 24 1 12 11 3 Successful 172 | . 14 1 19 1 1 . 11 5 20 3 12 . 1 20 . 6 1 4 6 . 3 . . . . 6 1 . 10 1 8 7 . 7 3 1 Failed 112 | . 9 . 6 . . . 7 3 9 9 6 . . . . 4 . . . . 5 3 . . 1 10 . . . . 10 16 1 4 7 2 Catastrophic 17 | . 1 . . . . . . 1 . . 2 . . . . . . . . . 1 . . . 1 1 . . . . 3 2 . 1 2 2 Database Lockouts 7 | . 1 . 1 . . . . . 1 . . . . . . . . . . . . . . . . 1 . . . . . 1 . 1 1 . Manual 58 | . 8 . 10 . . . 7 2 11 2 8 . . . . 3 . . . . 1 2 1 . . . . . 1 . . 1 . 1 . . Terminals 104 | . 19 . 20 . . . 11 8 11 12 5 . . . . 5 1 . . . . . . . . 1 . . . 1 . 2 . 5 1 2 Fabricators 18 | . . . . . . . . . . . 6 . . . . 5 . . . . 2 . . . . . . . . . 1 4 . . . . Repair Stations 40 | . 2 . 2 . . . 2 . 2 . . . . . . . . . . . 5 . . . . 7 . . . . 8 9 . 3 . . Recycling Units 14 | . 3 . 2 . . . . . . . 5 . . . . . . . . . 1 3 . . . . . . . . . . . . . . Scanalyzers 48 | . . . 2 . . . 4 . 16 . . . . . . . . . . . . . . . . 4 . . . . 6 5 . 4 7 . Garrison Access 22 | . . . . . . . 1 . 1 . 2 . . . . . . . . . . . . . 1 5 . . . . 3 4 1 . 3 1 Terminal Hacks 88 | . 9 1 12 1 1 . 3 4 2 3 2 . 1 20 . 2 1 4 6 . . . . . . . 1 . 10 1 . . . 3 1 . Record 24 | . . . . . 1 . . . . . . . . 6 . . 1 3 . . . . . . . . . . 9 1 . . . 3 . . Part Schematic 15 | . 1 . . . . . . . . . . . . 8 . . . . 6 . . . . . . . . . . . . . . . . . Robot Schematic 3 | . . . . . . . . . . . . . . 3 . . . . . . . . . . . . . . . . . . . . . . Robot Analysis 3 | . 1 . 2 . . . . . . . . . . . . . . . . . . . . . . . . . . . . . . . . . Prototype ID Bank 5 | . 2 . . . . . . . . . . . . 3 . . . . . . . . . . . . . . . . . . . . . . Open Door 8 | . . 1 . 1 . . . . . 1 . . 1 . . . . 1 . . . . . . . . 1 . 1 . . . . . 1 . Branch Access Points 1 | . . . . . . . . . . . . . . . . 1 . . . . . . . . . . . . . . . . . . . . Emergency Access Points 3 | . 1 . 1 . . . . 1 . . . . . . . . . . . . . . . . . . . . . . . . . . . . Terminal Index 1 | . 1 . . . . . . . . . . . . . . . . . . . . . . . . . . . . . . . . . . . Alert Level 1 | . . . . . . . . . . . 1 . . . . . . . . . . . . . . . . . . . . . . . . . Unreport Threat 6 | . . . 3 . . . 1 . 2 . . . . . . . . . . . . . . . . . . . . . . . . . . . Locate Traps 2 | . 1 . 1 . . . . . . . . . . . . . . . . . . . . . . . . . . . . . . . . . Dispatch Records 1 | . . . 1 . . . . . . . . . . . . . . . . . . . . . . . . . . . . . . . . . Maintenance Status 1 | . 1 . . . . . . . . . . . . . . . . . . . . . . . . . . . . . . . . . . . Patrol Status 1 | . . . . . . . . . . . 1 . . . . . . . . . . . . . . . . . . . . . . . . . Transport Status 1 | . . . 1 . . . . . . . . . . . . . . . . . . . . . . . . . . . . . . . . . Recall Extermination 1 | . . . . . . . . . . . . . . . . 1 . . . . . . . . . . . . . . . . . . . . Hauler Manifests 3 | . 1 . 1 . . . 1 . . . . . . . . . . . . . . . . . . . . . . . . . . . . . Zone Layout 3 | . . . 2 . . . 1 . . . . . . . . . . . . . . . . . . . . . . . . . . . . . Garrison Registry 2 | . . . . . . . . 1 . 1 . . . . . . . . . . . . . . . . . . . . . . . . . . Patrol Navigation 1 | . . . . . . . . 1 . . . . . . . . . . . . . . . . . . . . . . . . . . . . Security Stations 2 | . . . . . . . . 1 . 1 . . . . . . . . . . . . . . . . . . . . . . . . . . Fabricator Hacks 7 | . . . . . . . . . . . 1 . . . . 3 . . . . 1 . . . . . . . . . 1 1 . . . . Network Status 5 | . . . . . . . . . . . 1 . . . . 1 . . . . 1 . . . . . . . . . 1 1 . . . . Load Schematic 1 | . . . . . . . . . . . . . . . . 1 . . . . . . . . . . . . . . . . . . . . Build 1 | . . . . . . . . . . . . . . . . 1 . . . . . . . . . . . . . . . . . . . . Repair Station Hacks 23 | . 2 . 2 . . . 2 . 2 . . . . . . . . . . . . . . . . 3 . . . . 6 4 . 2 . . Scan Component 14 | . 1 . 1 . . . 1 . 1 . . . . . . . . . . . . . . . . 2 . . . . 4 3 . 1 . . Repair 9 | . 1 . 1 . . . 1 . 1 . . . . . . . . . . . . . . . . 1 . . . . 2 1 . 1 . . Recycling Unit Hacks 4 | . . . . . . . . . . . 3 . . . . . . . . . 1 . . . . . . . . . . . . . . . Retrieve Components 4 | . . . . . . . . . . . 3 . . . . . . . . . 1 . . . . . . . . . . . . . . . Scanalyzer 27 | . . . 1 . . . 3 . 15 . . . . . . . . . . . . . . . . 2 . . . . 1 1 . 2 2 . Insert Component 7 | . . . 1 . . . 1 . 5 . . . . . . . . . . . . . . . . . . . . . . . . . . . Analyze 6 | . . . . . . . 1 . 5 . . . . . . . . . . . . . . . . . . . . . . . . . . . Retrieve Study 14 | . . . . . . . 1 . 5 . . . . . . . . . . . . . . . . 2 . . . . 1 1 . 2 2 . Garrison Access Hacks 4 | . . . . . . . 1 . 1 . . . . . . . . . . . . . . . . 1 . . . . . . . . . 1 Unlock Access 2 | . . . . . . . 1 . 1 . . . . . . . . . . . . . . . . . . . . . . . . . . . Seal Access 2 | . . . . . . . . . . . . . . . . . . . . . . . . . . 1 . . . . . . . . . 1 Unauthorized Hacks 19 | . 3 . 4 . . . 2 1 . . 6 . . . . 1 . . . . 1 . . . . . . . . . . 1 . . . . Terminals 8 | . 1 . 2 . . . 2 1 . . 2 . . . . . . . . . . . . . . . . . . . . . . . . . Botnet 8 | . 1 . 2 . . . 2 1 . . 2 . . . . . . . . . . . . . . . . . . . . . . . . . Fabricators 6 | . . . . . . . . . . . 3 . . . . 1 . . . . 1 . . . . . . . . . . 1 . . . . Liberate 5 | . . . . . . . . . . . 2 . . . . 1 . . . . 1 . . . . . . . . . . 1 . . . . Haulers 1 | . . . . . . . . . . . 1 . . . . . . . . . . . . . . . . . . . . . . . . . Repair Stations . | . . . . . . . . . . . . . . . . . . . . . . . . . . . . . . . . . . . . . Recycling Units 5 | . 2 . 2 . . . . . . . 1 . . . . . . . . . . . . . . . . . . . . . . . . . Reject 1 | . . . . . . . . . . . 1 . . . . . . . . . . . . . . . . . . . . . . . . . Tunnel 4 | . 2 . 2 . . . . . . . . . . . . . . . . . . . . . . . . . . . . . . . . . Scanalyzers . | . . . . . . . . . . . . . . . . . . . . . . . . . . . . . . . . . . . . . Garrison Access . | . . . . . . . . . . . . . . . . . . . . . . . . . . . . . . . . . . . . . Data Cores Recovered 4 | . . . . . . . 1 . 1 . . . . . . . . . . . . . . . . 1 . . . . 1 . . . . . Used 1 | . . . . . . . . . . . . . . . . . . . . . . . . . . 1 . . . . . . . . . . Hacking Detections 67 | . 5 . 7 . . . 5 3 4 3 8 . . . . 3 1 . . . 3 2 . . 1 2 . . . 1 7 7 1 1 2 1 Full Trace Events 1 | . . . . . . . . . . . . . . . . 1 . . . . . . . . . . . . . . . . . . . . Feedback Events . | . . . . . . . . . . . . . . . . . . . . . . . . . . . . . . . . . . . . . Feedback Blocked . | . . . . . . . . . . . . . . . . . . . . . . . . . . . . . . . . . . . . . Robot Schematics Acquired 6 | . . . . . . . . . . . . . . 3 . . . . 3 . . . . . . . . . . . . . . . . . Robots Built . | . . . . . . . . . . . . . . . . . . . . . . . . . . . . . . . . . . . . . Authchips . | . . . . . . . . . . . . . . . . . . . . . . . . . . . . . . . . . . . . . Time . | . . . . . . . . . . . . . . . . . . . . . . . . . . . . . . . . . . . . . Total Robot Build Rating . | . . . . . . . . . . . . . . . . . . . . . . . . . . . . . . . . . . . . . Part Schematics Acquired 35 | . 1 . . . . . 1 . 4 . . . . 8 . . . . 21 . . . . . . . . . . . . . . . . . Parts Built 1 | . . . . . . . . . . . . . . . . 1 . . . . . . . . . . . . . . . . . . . . Authchips . | . . . . . . . . . . . . . . . . . . . . . . . . . . . . . . . . . . . . . Time 152 | . . . . . . . . . . . . . . . . 152 . . . . . . . . . . . . . . . . . . . . Total Part Build Rating 5 | . . . . . . . . . . . . . . . . 5 . . . . . . . . . . . . . . . . . . . . Part Studies Acquired 13 | . . . . . . . . . 5 . . . . . . . . . . . . . . . . 2 . . . . 1 1 . 2 2 . Parts Repaired 9 | . 1 . 1 . . . 1 . 1 . . . . . . . . . . . . . . . . 1 . . . . 2 1 . 1 . . Time 465 | . 26 . 26 . . . 26 . 108 . . . . . . . . . . . . . . . . 68 . . . . 144 18 . 49 . . Parts Recycled . | . . . . . . . . . . . . . . . . . . . . . . . . . . . . . . . . . . . . . Recycled Matter . | . . . . . . . . . . . . . . . . . . . . . . . . . . . . . . . . . . . . . Retrieved Matter . | . . . . . . . . . . . . . . . . . . . . . . . . . . . . . . . . . . . . . Retrieved Components 4 | . . . . . . . . . . . 2 . . . . . . . . . 2 . . . . . . . . . . . . . . . Parts Scanalyzed 6 | . . . . . . . 1 . 5 . . . . . . . . . . . . . . . . . . . . . . . . . . . Part Schematics Acquired 5 | . . . . . . . 1 . 4 . . . . . . . . . . . . . . . . . . . . . . . . . . . Parts Damaged . | . . . . . . . . . . . . . . . . . . . . . . . . . . . . . . . . . . . . . Bothacking | -11 -10 -10 -9 -9 -9 -8 -8 -8 -8 -8 -7 -7 -7 -7 -6 -6 -6 -6 -6 -5 -5 -5 -5 -5 -5 -4 -4 -4 -4 -3 -3 -3 -2 -2 -2 -1 ------------ Run | Yrd Mat Min Mat Min Exi Min Mat Gar Mat Gar Fac Low Low Dat Pro Fac Low Low Zio Pro Fac Ext Cet Arc Hub Fac Upp Upp War Pro Res Tes Res Qua Sec Acc Used RIF Installer . | . . . . . . . . . . . . . . . . . . . . . . . . . . . . . . . . . . . . . Robots Hacked 10 | . . . . . 4 . . . . . 2 . . 1 . . . . 1 . 1 . . 1 . . . . . . . . . . . . Non-combat 7 | . . . . . 3 . . . . . 2 . . . . . . . . . 1 . . 1 . . . . . . . . . . . . Combat 3 | . . . . . 1 . . . . . . . . 1 . . . . 1 . . . . . . . . . . . . . . . . . Robot Hacks Applied 13 | . . . . . 4 . . . . . 2 . . 1 . . . . 1 . 1 . . 4 . . . . . . . . . . . . parse_system 7 | . . . . . 4 . . . . . . . . 1 . . . . 1 . . . . 1 . . . . . . . . . . . . no_distress 1 | . . . . . . . . . . . . . . . . . . . . . . . . 1 . . . . . . . . . . . . find_chute 3 | . . . . . . . . . . . 2 . . . . . . . . . 1 . . . . . . . . . . . . . . . check_alert 2 | . . . . . . . . . . . . . . . . . . . . . . . . 2 . . . . . . . . . . . . Relay Couplers Released 55 | . . . . . . . . 20 . 29 . . . . . . . . . . . . . . . . . . . . . . 2 . 4 . Machine Destruction 51 | . . . . . . . . 20 . 29 . . . . . . . . . . . . . . . . . . . . . . 2 . . . Programmers 4 | . . . . . . . . . . . . . . . . . . . . . . . . . . . . . . . . . . . 4 . Fabnet Peak Effective % . | . . . . . . . . . . . . . . . . . . . . . . . . . . . . . . . . . . . . . Robots Rewired 17 | . . . . . . . . . . . . . . . . . 4 . . . . 7 . . . . . . 5 . . 1 . . . . Allies Hacked . | . . . . . . . . . . . . . . . . . . . . . . . . . . . . . . . . . . . . . Hacks Repelled . | . . . . . . . . . . . . . . . . . . . . . . . . . . . . . . . . . . . . . Allies | -11 -10 -10 -9 -9 -9 -8 -8 -8 -8 -8 -7 -7 -7 -7 -6 -6 -6 -6 -6 -5 -5 -5 -5 -5 -5 -4 -4 -4 -4 -3 -3 -3 -2 -2 -2 -1 -------- Run | Yrd Mat Min Mat Min Exi Min Mat Gar Mat Gar Fac Low Low Dat Pro Fac Low Low Zio Pro Fac Ext Cet Arc Hub Fac Upp Upp War Pro Res Tes Res Qua Sec Acc Total Allies 51 | . . 2 . . . . . . . 2 3 . . . . 3 4 . . . 1 18 5 . . . . . 5 . . 3 4 . 1 . Largest Group 12 | . . 2 2 . . . . . . 2 3 . . . . 3 4 4 4 4 4 12 12 7 4 . . . 5 . . 2 4 . 1 . Highest-Rated Group 743 | . . 38 38 . . . . . . 62 62 . . . . 90 89 89 89 89 89 463 743 457 384 . . . 277 . . 164 384 . 45 . Highest-Rated Ally 164 | . . 31 31 . . . . . . 31 31 . . . . 30 29 29 29 29 29 159 159 96 96 . . . 68 . . 164 96 . 45 . Initial Warlord ECA Mod 23 | . . . . . . . . . 10 10 23 23 23 23 22 22 22 22 22 21 21 21 21 21 21 20 20 20 20 19 19 19 18 . . . Total Orders 100 | . . . . . . . . . . . . . . . . . . 8 2 4 13 16 8 . 10 6 . . 4 . 4 7 1 8 7 2 STAY 28 | . . . . . . . . . . . . . . . . . . 4 1 2 2 5 6 . 5 . . . 2 . . 1 . . . . FOLLOW 22 | . . . . . . . . . . . . . . . . . . 4 1 2 2 6 2 . 2 . . . 2 . . 1 . . . . RETURN 50 | . . . . . . . . . . . . . . . . . . . . . 9 5 . . 3 6 . . . . 4 5 1 8 7 2 Ally Attacks 393 | . . 3 7 . . . . . . 20 49 . . . . 4 . . . . 22 70 54 32 47 . . . 15 . . 29 41 . . . Total Damage 10756 | . . 42 104 . . . . . . 357 534 . . . . 32 . . . . 470 1592 1486 1073 1212 . . . 865 . . 1400 1589 . . . Kills 58 | . . 1 2 . . . . . . 6 3 . . . . . . . . . 2 5 7 4 9 . . . 3 . . 10 6 . . . Allies Corrupted 7 | . . . . . . . . . . . . . . . . . . . . . . 2 . . 3 . . . . . . 2 . . . . Allies Melted 3 | . . . . . . . . . . . 1 . . . . . . . . . . . . . . . . . 2 . . . . . . . Intel | -11 -10 -10 -9 -9 -9 -8 -8 -8 -8 -8 -7 -7 -7 -7 -6 -6 -6 -6 -6 -5 -5 -5 -5 -5 -5 -4 -4 -4 -4 -3 -3 -3 -2 -2 -2 -1 ------- Run | Yrd Mat Min Mat Min Exi Min Mat Gar Mat Gar Fac Low Low Dat Pro Fac Low Low Zio Pro Fac Ext Cet Arc Hub Fac Upp Upp War Pro Res Tes Res Qua Sec Acc Active Infowar (turns) 42048 | 23 1373 143 759 1336 27 . 1213 . . . 904 1651 1309 129 1388 1071 2082 1982 1532 1537 1986 2056 409 46 854 1612 1100 1201 1398 1114 3301 1683 3075 1563 1574 617 Optics 3838 | . . . . . . . . . . . . . . . . . . . . . 1293 1575 . . . . . . 1 . 934 . 35 . . . Sensors 32148 | . . 1 . . . . . . . . 904 1651 1309 129 1307 963 2082 1982 1532 1537 1641 821 409 46 447 1219 973 1169 1216 1114 2383 1230 3039 1343 1100 601 Terrain 729 | . 648 . . . . . . . . . . . . . 81 . . . . . . . . . . . . . . . . . . . . . Structural 123 | . . . . . . . . . . . . . . . . . . . . . . . . . . . . . . . . 123 . . . . Seismic 4225 | 23 725 142 759 1336 27 . 1213 . . . . . . . . . . . . . . . . . . . . . . . . . . . . . Decoding 721 | . . . . . . . . . . . . . . . . . . . . . 721 . . . . . . . . . . . . . . . T.N.C. 2 | . . . . . . . . . . . . . . . . . . . . . . . . . . . . . . . 2 . . . . . Machine Analysis 1070 | . . . . . . . . . . . . . . . . 1070 . . . . . . . . . . . . . . . . . . . . Jamming 14955 | . . . . . . . . . . . . . . . . . . . . . 167 939 . . 630 1528 1100 1201 1397 603 2188 721 727 1563 1574 617 ECM 1 | . . . . . . . . . . . . . . . . . . . . . . . . . . . . . . . . . 1 . . . ID Mask 231 | . . . . . . . . . . . . . . . . . . . . . . . . . . . . . . . . . . 125 106 . Robot Analysis Total 3 | . 1 . 2 . . . . . . . . . . . . . . . . . . . . . . . . . . . . . . . . . Derelict Logs Recovered 19 | . . 2 . 2 . . . . . . . 2 2 . 1 . 2 1 3 2 . . . . . . 1 1 . . . . . . . . Drone Launches 50 | . . . . . . . . . . . . . . . . . . . . . 9 5 . . 3 6 . . . . 4 5 1 8 7 2 Drone Recoveries 49 | . . . . . . . . . . . . . . . . . . . . . 9 5 . . 3 6 . . . . 4 5 1 8 7 1 Decoded 0b10 Intel 9 | . . . . . . . . . . . . . . . . . . . . . 9 . . . . . . . . . . . . . . . Traps 9 | . . . . . . . . . . . . . . . . . . . . . 9 . . . . . . . . . . . . . . . Exploration | -11 -10 -10 -9 -9 -9 -8 -8 -8 -8 -8 -7 -7 -7 -7 -6 -6 -6 -6 -6 -5 -5 -5 -5 -5 -5 -4 -4 -4 -4 -3 -3 -3 -2 -2 -2 -1 ------------- Run | Yrd Mat Min Mat Min Exi Min Mat Gar Mat Gar Fac Low Low Dat Pro Fac Low Low Zio Pro Fac Ext Cet Arc Hub Fac Upp Upp War Pro Res Tes Res Qua Sec Acc Turns Passed 58639 | 118 1797 1685 2137 1780 568 1465 1666 2431 1847 2152 1186 1654 1357 130 1473 1073 2364 1982 1545 1584 1986 2330 824 1153 1205 1637 1100 1201 1558 1121 3301 1839 3636 1563 1574 617 Spaces Moved 26474 | 12 575 605 760 642 229 439 492 889 661 920 576 817 823 79 672 590 920 979 965 945 958 933 360 382 483 719 570 674 859 669 1699 814 1923 666 904 271 Core . | . . . . . . . . . . . . . . . . . . . . . . . . . . . . . . . . . . . . . Treads 24889 | . . . 647 642 229 439 492 889 661 920 576 817 823 79 672 590 920 979 965 945 958 933 360 382 483 719 570 674 855 669 1699 814 1923 666 628 271 Legs 1279 | 12 575 605 83 . . . . . . . . . . . . . . . . . . . . . . . . . 4 . . . . . . . Wheels 30 | . . . 30 . . . . . . . . . . . . . . . . . . . . . . . . . . . . . . . . . Hover . | . . . . . . . . . . . . . . . . . . . . . . . . . . . . . . . . . . . . . Flight . | . . . . . . . . . . . . . . . . . . . . . . . . . . . . . . . . . . . . . Fastest Speed 120 | 120 120 260 145 240 240 240 240 240 200 200 152 152 152 152 152 148 148 151 155 155 155 160 160 160 160 150 150 150 155 165 161 163 155 166 160 160 Average Speed 180 | 120 248 260 223 240 240 295 278 240 234 200 156 152 152 152 152 163 187 163 155 155 163 162 161 201 162 153 150 152 158 165 164 165 167 166 165 160 Slowest Speed 380 | 120 260 260 320 240 240 320 320 320 240 200 160 152 152 152 152 200 201 206 215 215 215 240 213 320 240 160 150 155 380 165 243 247 247 166 246 240 Overloaded Moves . | . . . . . . . . . . . . . . . . . . . . . . . . . . . . . . . . . . . . . Propulsion Burnouts . | . . . . . . . . . . . . . . . . . . . . . . . . . . . . . . . . . . . . . Robots Hopped . | . . . . . . . . . . . . . . . . . . . . . . . . . . . . . . . . . . . . . Potential Cave-ins 6 | . . . . . . . . . . . . . . . . . . . . . . . . . . . . . . . . . . 2 4 . Cave-ins Triggered . | . . . . . . . . . . . . . . . . . . . . . . . . . . . . . . . . . . . . . Teleports 1 | . . . . . . . . . . . . . . . . . . . . . . . . . . . . . . . . . . . . 1 Microwarps 23 | . . . . . . . . . . . . . . . . . . . . . . . . . . . . . . . . . . . 23 . Exploration Rate (%) 64 | 2 88 98 62 94 63 86 43 88 55 84 17 78 82 69 64 12 63 79 87 82 26 83 75 91 33 21 84 75 90 84 53 80 68 74 48 6 Regions Visited 36 Branch Regions 23 Pre-discovered Areas 16 | . 2 1 2 1 1 . . . . . . 1 1 1 1 . 1 . 2 . . . . . . . . 1 1 . . . . . . . Known Exits Taken 27 | . . . . . . . 1 . 1 . 1 1 1 1 1 1 1 1 1 1 1 1 1 1 1 1 1 1 1 1 1 1 1 1 1 . Unknown Exits Taken 7 | 1 1 1 1 1 1 1 . . . . . . . . . . . . . . . . . . . . . . . . . . . . . . Scrap Searched 45 | . . 3 . 4 . 1 . . . . . 9 3 . 4 . 1 4 3 4 . . . . . . 4 3 . 2 . . . . . . Spaces Dug 256 | . . . . . . . 8 11 . 4 14 25 15 . 28 14 8 6 . 2 13 3 . 2 8 19 2 9 2 17 4 7 3 15 17 . Terrain Destroyed 1170 | 7 . . . . . . 12 124 3 89 14 25 25 . 51 16 39 14 . 11 36 137 10 22 58 88 15 34 9 17 21 73 74 51 87 8 Melee 98 | . . . . . . . 2 11 . 4 14 25 15 . 27 . . . . . . . . . . . . . . . . . . . . . Projectile 640 | . . . . . . . . . 3 1 . . 1 . 3 16 21 14 . 11 35 21 10 22 58 88 15 34 9 . 21 61 74 51 63 8 AOE 430 | 7 . . . . . . 10 113 . 84 . . 9 . 21 . 18 . . . . 115 . . . . . . . 17 . 12 . . 24 . Terrain Rammed . | . . . . . . . . . . . . . . . . . . . . . . . . . . . . . . . . . . . . . Walls Destroyed . | . . . . . . . . . . . . . . . . . . . . . . . . . . . . . . . . . . . . . Machines Disabled . | . . . . . . . . . . . . . . . . . . . . . . . . . . . . . . . . . . . . . Actions | -11 -10 -10 -9 -9 -9 -8 -8 -8 -8 -8 -7 -7 -7 -7 -6 -6 -6 -6 -6 -5 -5 -5 -5 -5 -5 -4 -4 -4 -4 -3 -3 -3 -2 -2 -2 -1 --------- Run | Yrd Mat Min Mat Min Exi Min Mat Gar Mat Gar Fac Low Low Dat Pro Fac Low Low Zio Pro Fac Ext Cet Arc Hub Fac Upp Upp War Pro Res Tes Res Qua Sec Acc Total 34275 | 82 808 691 1019 775 249 508 696 1070 830 1092 753 1192 897 86 1052 672 1508 1346 1007 1044 1264 1544 547 712 726 1072 769 805 1002 681 2074 1133 2194 993 962 420 Wait 4087 | 47 92 41 78 51 . 2 72 62 38 23 35 331 37 . 302 17 482 322 4 70 164 301 84 235 102 162 148 91 22 . 126 129 65 188 90 74 Move 26185 | 11 574 604 759 641 228 438 492 886 661 919 575 816 822 78 671 589 919 978 964 944 957 932 359 381 482 718 569 673 859 668 1698 813 1922 665 650 270 Hop . | . . . . . . . . . . . . . . . . . . . . . . . . . . . . . . . . . . . . . Pick Up 357 | 2 26 8 28 5 4 5 13 5 15 6 14 4 1 . 3 8 3 5 8 2 9 19 11 1 2 10 3 2 6 1 46 23 15 12 18 14 Fast Attach 133 | 1 1 . 2 3 . 3 4 2 5 2 5 1 . 1 1 4 . 2 4 4 4 4 5 6 2 3 3 . 10 1 13 2 25 3 3 4 Attach 124 | . 4 1 2 3 3 2 3 8 2 1 9 1 . . 1 2 1 . . . 2 6 5 1 1 4 2 . 3 1 8 8 7 2 15 16 Detach 64 | . . . . 1 3 . . 2 1 1 . . . . . 1 . . 1 1 3 4 . 1 1 1 3 . 2 1 6 4 10 2 12 3 Swap 728 | 1 17 11 25 5 3 3 31 21 25 36 35 5 12 3 14 14 19 10 7 4 41 74 10 9 34 33 11 5 19 4 51 47 38 18 32 1 Drop 449 | . 21 11 28 7 4 5 17 3 20 13 14 5 2 1 4 13 3 12 11 5 11 27 19 6 4 9 5 2 17 2 54 19 39 13 20 3 Fire 1689 | 16 72 15 94 55 . 47 36 42 46 60 42 . 6 3 22 24 34 16 8 14 67 98 46 67 91 131 24 32 22 2 68 77 73 89 118 32 Melee 166 | . . . . . 4 . 5 23 2 25 23 29 17 . 34 . . . . . . . . 4 . . . . . . . . . . . . Ram 1 | . . . . . . . . . . . . . . . . . . . . . . . . . . . . . . . . . . 1 . . Kick 5 | 4 1 . . . . . . . . . . . . . . . . . . . . . . . . . . . . . . . . . . . Crush 60 | . . . 3 4 . 3 . . 15 . 1 . . . . . . 1 . . 6 4 . 1 1 1 . . . 1 4 8 . . 4 3 Escape Stasis 22 | . . . . . . . . 16 . 6 . . . . . . . . . . . . . . . . . . . . . . . . . . Rewire 160 | . . . . . . . . . . . . . . . . . 47 . . . . 67 . . . . 1 . 42 . . 3 . . . . Trap 23 | . . . . . . . 23 . . . . . . . . . . . . . . . . . . . . . . . . . . . . . Miscellaneous 22 | . . . . . . . . . . . . . . . . . . . . . . 8 8 . 6 . . . . . . . . . . . Route ------- -11/Scrapyard -10/Materials (discovered 3 exits: *Mat x2 / *Min) -10/Mines (discovered 2 exits: *Mat x2) -9/Materials (discovered 6 exits: *Mat x2 / *Min x2 / [*Sto x2]) -9/Mines (discovered 3 exits: *Mat x2 / *Exi) -9/Exiles -8/Mines -8/Materials -8/Garrison (discovered 3 exits: *Mat x3) -8/Materials (discovered 3 exits: *Fac x2 / Gar) -8/Garrison (discovered 4 exits: *Fac x3 / [Mat]) -7/Factory -7/Lower Caves -7/Lower Caves (discovered 2 exits: *Fac / *Dat) -7/Data Miner -6/Proximity Caves -6/Factory (discovered 3 exits: Fac / *Low x2) -6/Lower Caves -6/Lower Caves (discovered 2 exits: *Fac / *Zio) -6/Zion (discovered 2 exits: Dee / *Pro) -5/Proximity Caves -5/Factory (discovered 8 exits: Fac x4 / Upp x2 / *Ext x2) -5/Extension (discovered 3 exits: *Fac x2 / *Cet) -5/Cetus (discovered 2 exits: *Fac / *Arc) -5/Archives (discovered 3 exits: *Fac / *Hub x2) -5/Hub_04(d) (discovered 2 exits: *Fac x2) -4/Factory (discovered 6 exits: *Res x4 / *Upp x2) -4/Upper Caves -4/Upper Caves (discovered 2 exits: *Res / *War) -4/Warlord -3/Proximity Caves -3/Research (discovered 3 exits: *Res / *Tes x2) -3/Testing -2/Research (discovered 4 exits: *Acc x3 / *Qua) -2/Quarantine (discovered 3 exits: Acc / *Sec / [*Frg]) -2/Section 7 -1/Access To Fleet Rendezvous History --------- Turn | Location | Event 13 | -11/Scrapyard | Discovered new exit (range 2) 119 | -11/Scrapyard | Entered Materials 258 | -10/Materials | Discovered new exit (range 13) 309 | -10/Materials | Build established: Mutant 388 | -10/Materials | Central database locked down 425 | -10/Materials | Discovered new exit (range 4) 1179 | -10/Materials | Destroyed 7 combat bots 1679 | -10/Materials | Repaired Lgt. Treads 1706 | -10/Materials | Discovered new exit (range 11) 1916 | -10/Materials | Entered Mines 2223 | -10/Mines | Build established: Scavenger-Mutant 2541 | -10/Mines | Discovered new exit (range 10) 2583 | -10/Mines | Learned Materials emergency access door positions 2596 | -10/Mines | Found a damaged Exp. Sensor Array with a note attached 2601 | -10/Mines | Found Prototype Device 2602 | -10/Mines | Identified Exp. Sensor Array 2933 | -10/Mines | Discovered new exit (range 12) 3488 | -10/Mines | Met a Derelict shopkeep closing up shop 3601 | -10/Mines | Entered Materials 3601 | -9/Materials | Accompanied by 2 allies 3601 | -9/Materials | Evolved 2 slots: Propulsion x1, Utility x1 3606 | -9/Materials | Led the pair of lost Derelicts to an unsafe place 3666 | -9/Materials | Central database locked down 3923 | -9/Materials | Lost 3 allies 4024 | -9/Materials | Discovered new exit (range 9) 4148 | -9/Materials | Destroyed 7 combat bots 4151 | -9/Materials | Discovered new exit (range 16) 4592 | -9/Materials | Discovered new exit (range 14) 4801 | -9/Materials | Repaired Hcp. Storage Unit 4968 | -9/Materials | Discovered new exit (range 8) 5119 | -9/Materials | Discovered new exit (range 10) 5314 | -9/Materials | Discovered new exit (range 6) 5441 | -9/Materials | Build established: Mutant 5738 | -9/Materials | Entered Mines 5740 | -9/Mines | Met a Derelict bent on vengeance 5779 | -9/Mines | Found a Scrap Suit stashed away for nefarious purposes 5866 | -9/Mines | Discovered new exit (range 3) 6188 | -9/Mines | Found the Drone Emporium 6202 | -9/Mines | Found Prototype Device 6202 | -9/Mines | Identified Thief Drone Bay 6314 | -9/Mines | Assembled infested the area 6548 | -9/Mines | Discovered new exit (range 5) 6921 | -9/Mines | Learned Materials stockpile data 6980 | -9/Mines | Learned Materials trap positions 7127 | -9/Mines | Deemed a non-threat by the Exiles lab entrance 7127 | -9/Mines | Discovered new exit (range 5) 7518 | -9/Mines | Entered Exiles 7586 | -9/Exiles | Met 8R-AWN 7625 | -9/Exiles | Met EX-HEX 7698 | -9/Exiles | Met EX-BIN 7774 | -9/Exiles | Met EX-DEC 7784 | -9/Exiles | Learned location of Zion (-6) 8054 | -9/Exiles | Discovered new exit (range 14) 8086 | -9/Exiles | Entered Mines 8329 | -8/Mines | Discovered new exit (range 4) 8911 | -8/Mines | Build established: Scavenger-Mutant 9551 | -8/Mines | Entered Materials 9551 | -8/Materials | Evolved 2 slots: Utility x1, Weapon x1 9552 | -8/Materials | Loaded intel: 19 trap records 9887 | -8/Materials | Build established: Scavenger-Gunner 10034 | -8/Materials | Repaired Lgt. Treads 11217 | -8/Materials | Identified exit to Garrison 11217 | -8/Materials | Entered Garrison 11291 | -8/Garrison | Triggered checkpoint 11411 | -8/Garrison | Garrison Relay disabled 11540 | -8/Garrison | Triggered checkpoint 11554 | -8/Garrison | Triggered checkpoint 11578 | -8/Garrison | Destroyed 8 combat bots 11675 | -8/Garrison | Triggered checkpoint 11733 | -8/Garrison | Triggered checkpoint 11828 | -8/Garrison | Lost 3 parts (1p1n1w) 11864 | -8/Garrison | Discovered new exit (range 7) 11950 | -8/Garrison | Garrison Relay disabled 12074 | -8/Garrison | Build established: Mutant 12181 | -8/Garrison | Triggered checkpoint 12406 | -8/Garrison | Discovered new exit (range 12) 12470 | -8/Garrison | Learned Materials security intel 12570 | -8/Garrison | Triggered checkpoint 12615 | -8/Garrison | Garrison Relay disabled 12895 | -8/Garrison | Discovered new exit (range 9) 12895 | -8/Garrison | Discovered new exit (range 31) 12895 | -8/Garrison | Discovered new exit (range 57) 12987 | -8/Garrison | Garrison Relay disabled 13146 | -8/Garrison | Phase Generator disabled 13159 | -8/Garrison | Attempted to access garrison exit controls, blocked by remote lockdown 13367 | -8/Garrison | Triggered checkpoint 13403 | -8/Garrison | Garrison Relay disabled 13459 | -8/Garrison | Attempted to access garrison exit controls, blocked by remote lockdown 13648 | -8/Garrison | Entered Materials 14048 | -8/Materials | First assault squad dispatched 14054 | -8/Materials | Discovered new exit (range 3) 14155 | -8/Materials | Repaired Exp. Sensor Array? 14390 | -8/Materials | Build established: Gunner 15140 | -8/Materials | Core integrity fell below 50% 15312 | -8/Materials | Central database locked down 15365 | -8/Materials | Discovered new exit (range 12) 15495 | -8/Materials | Identified exit to Garrison 15495 | -8/Materials | Entered Garrison 15643 | -8/Garrison | Triggered checkpoint 15679 | -8/Garrison | Triggered checkpoint 15725 | -8/Garrison | Triggered checkpoint 15790 | -8/Garrison | Triggered checkpoint 16033 | -8/Garrison | Discovered new exit (range 3) 16074 | -8/Garrison | Build established: Scavenger-Mutant 16252 | -8/Garrison | Discovered new exit (range 14) 16420 | -8/Garrison | Discovered new exit (range 10) 16461 | -8/Garrison | Triggered checkpoint 16571 | -8/Garrison | Rescued a captive Derelict 16573 | -8/Garrison | Rescued a captive Derelict 16612 | -8/Garrison | Discovered new exit (range 10) 16612 | -8/Garrison | Discovered new exit (range 90) 16612 | -8/Garrison | Discovered new exit (range 52) 16612 | -8/Garrison | Discovered new exit (range 67) 16849 | -8/Garrison | Learned Factory security intel 17039 | -8/Garrison | Garrison Relay disabled 17115 | -8/Garrison | Garrison Relay disabled 17117 | -8/Garrison | Garrison Relay disabled 17295 | -8/Garrison | Triggered checkpoint 17346 | -8/Garrison | Garrison Relay disabled 17560 | -8/Garrison | Garrison Relay disabled 17647 | -8/Garrison | Entered Factory 17647 | -7/Factory | Accompanied by 2 allies 17647 | -7/Factory | Evolved 2 slots: Propulsion x1, Utility x1 18159 | -7/Factory | Watched by a mysterious "MATRIX" hacker. 18338 | -7/Factory | Lost 3 parts (1p2n) 18654 | -7/Factory | Discovered new exit (range 9) 18667 | -7/Factory | Identified exit to Lower Caves 18739 | -7/Factory | Build established: Scientist-Mutant 18833 | -7/Factory | Entered Lower Caves 18839 | -7/Lower Caves | Met a Warlord Commander 18840 | -7/Lower Caves | Learned location of Warlord (-4) 18841 | -7/Lower Caves | Warlord Commander delivered Encrypted Comm Array 18846 | -7/Lower Caves | Found Encrypted Comm Array 19053 | -7/Lower Caves | Learned location of 1 exit from Factory 19231 | -7/Lower Caves | Build established: Mutant 20094 | -7/Lower Caves | Learned Factory terminal intel 20382 | -7/Lower Caves | Discovered new exit (range 5) 20386 | -7/Lower Caves | Identified exit to Lower Caves 20487 | -7/Lower Caves | Entered another Lower Caves area 20691 | -7/Lower Caves | Discovered new exit (range 4) 20694 | -7/Lower Caves | Identified exit to Factory 21113 | -7/Lower Caves | Attracted the attention of an 0b10 checkpoint 21590 | -7/Lower Caves | Learned Factory security intel 21696 | -7/Lower Caves | Discovered new exit (range 15) 21841 | -7/Lower Caves | Identified exit to Data Miner 21844 | -7/Lower Caves | Entered Data Miner 21844 | -7/Data Miner | Discovered new exit (range 6) 21851 | -7/Data Miner | Identified exit to Proximity Caves 21874 | -7/Data Miner | Met Data Miner 21907 | -7/Data Miner | Learned location of Section 7 (-2) 21907 | -7/Data Miner | Acquired the access code to Warlord's prototype stash 21935 | -7/Data Miner | Received God Mode back door access code from Data Miner 21974 | -7/Data Miner | Entered Proximity Caves 22990 | -6/Proximity Caves | Discovered exit to Factory (range 12) 23211 | -6/Proximity Caves | Destroyed 13 combat bots 23447 | -6/Proximity Caves | Entered Factory 23447 | -6/Factory | Evolved 2 slots: Power x1, Utility x1 23448 | -6/Factory | Identified exit to Factory 23450 | -6/Factory | Loaded intel: 26 terminal locations 23846 | -6/Factory | Identified exit to Lower Caves 23870 | -6/Factory | Build established: Skirmisher 24014 | -6/Factory | Incoming investigation squad redirected 24145 | -6/Factory | Fabricated Multireflex Exoskeleton? 24520 | -6/Factory | Entered Lower Caves 24566 | -6/Lower Caves | Lost 3 allies 24676 | -6/Lower Caves | Attracted the attention of an 0b10 checkpoint 25033 | -6/Lower Caves | Learned location of 1 exit from Factory 26297 | -6/Lower Caves | Build established: Tank 26360 | -6/Lower Caves | Discovered new exit (range 10) 26378 | -6/Lower Caves | Identified exit to Lower Caves 26765 | -6/Lower Caves | Attacked by a delusional Derelict stockpiling Unaware 26884 | -6/Lower Caves | Entered another Lower Caves area 26884 | -6/Lower Caves | Accompanied by 4 allies 26994 | -6/Lower Caves | Discovered exit to Factory (range 6) 27013 | -6/Lower Caves | Learned Factory terminal intel 27229 | -6/Lower Caves | Build established: Commander-Skirmisher 27852 | -6/Lower Caves | Learned Factory emergency access door positions 27852 | -6/Lower Caves | Learned Factory terminal intel 28097 | -6/Lower Caves | Encountered a Warlord checkpoint 28632 | -6/Lower Caves | Discovered new exit (range 6) 28700 | -6/Lower Caves | Identified exit to Zion 28866 | -6/Lower Caves | Entered Zion 28866 | -6/Zion | Accompanied by 4 allies 28919 | -6/Zion | Discovered new exit (range 16) 28942 | -6/Zion | Identified exit to Proximity Caves 29044 | -6/Zion | Found Prototype Device 29044 | -6/Zion | Identified Mobile Refinery Mk. CCLXVII 29228 | -6/Zion | Learned Factory terminal intel 29266 | -6/Zion | Identified exit to Deep Caves 29573 | -6/Zion | Learned Factory emergency access door positions 29734 | -6/Zion | Given the Hacking Drone Bay 29734 | -6/Zion | Found Prototype Device 29768 | -6/Zion | Found Prototype Energy Gun 30082 | -6/Zion | Met Imprinter 30411 | -6/Zion | Entered Proximity Caves 30411 | -5/Proximity Caves | Accompanied by 4 allies 31160 | -5/Proximity Caves | Learned Factory terminal intel 31708 | -5/Proximity Caves | Learned 8 Factory zone layouts 31743 | -5/Proximity Caves | Discovered exit to Factory (range 10) 31995 | -5/Proximity Caves | Entered Factory 31995 | -5/Factory | Accompanied by 4 allies 31995 | -5/Factory | Evolved 2 slots: Propulsion x1, Utility x1 31996 | -5/Factory | Identified exit to Extension 31999 | -5/Factory | Loaded intel: 27 terminal locations 32365 | -5/Factory | Lost 3 allies 32512 | -5/Factory | Identified Hacking Drone Bay 32521 | -5/Factory | Identified exit to Factory 32645 | -5/Factory | Build established: Skirmisher 32678 | -5/Factory | Identified exit to Upper Caves 33981 | -5/Factory | Entered Extension 33981 | -5/Extension | Accompanied by 1 ally 35031 | -5/Extension | Disrupted transfer network 35078 | -5/Extension | Spotted B-75 Beast 35105 | -5/Extension | Rescued a captive Derelict 35107 | -5/Extension | Rescued a captive Derelict 35161 | -5/Extension | Rescued a captive Derelict 35163 | -5/Extension | Rescued a captive Derelict 35283 | -5/Extension | Rescued A7 35334 | -5/Extension | Rescued a captive Derelict 35592 | -5/Extension | Destroyed B-75 Beast 35603 | -5/Extension | Spotted B-75 Beast 35618 | -5/Extension | Allies destroyed B-75 Beast 35705 | -5/Extension | Rescued a captive Derelict 35706 | -5/Extension | Rescued a captive Derelict 35804 | -5/Extension | Rescued a captive Derelict 35805 | -5/Extension | Rescued a captive Derelict 35934 | -5/Extension | Rescued a captive Derelict 35991 | -5/Extension | Identified exit to Cetus 36311 | -5/Extension | Entered Cetus 36311 | -5/Cetus | Accompanied by 12 allies (A7) 36316 | -5/Cetus | Acquired a Cetus Manufacturing Module code from A7 36350 | -5/Cetus | Spotted Cetus Guard 36351 | -5/Cetus | Spotted Cetus Guard 36353 | -5/Cetus | Spotted Cetus Guard 36354 | -5/Cetus | Spotted Cetus Guard 36357 | -5/Cetus | Destroyed Cetus Guard 36375 | -5/Cetus | Destroyed Cetus Guard 36381 | -5/Cetus | Destroyed Cetus Guard 36385 | -5/Cetus | Allies destroyed Cetus Guard 36407 | -5/Cetus | Lost 4 allies 36535 | -5/Cetus | Started Cetus Manufacturing Module 36560 | -5/Cetus | Manufactured an Enhanced Grunt 36565 | -5/Cetus | Escorted A7 to Cetus Mainframe 36585 | -5/Cetus | Manufactured an Enhanced Grunt 36596 | -5/Cetus | Discovered new exit (range 16) 36610 | -5/Cetus | Manufactured an Enhanced Grunt 36635 | -5/Cetus | Manufactured an Enhanced Grunt 36637 | -5/Cetus | Spotted Cetus Guard 36637 | -5/Cetus | Spotted Cetus Guard 36639 | -5/Cetus | Spotted Cetus Guard 36644 | -5/Cetus | Allies destroyed Cetus Guard 36644 | -5/Cetus | Spotted Cetus Guard 36648 | -5/Cetus | Allies destroyed Cetus Guard 36652 | -5/Cetus | Allies destroyed Cetus Guard 36660 | -5/Cetus | Manufactured an Enhanced Grunt 36660 | -5/Cetus | Allies destroyed Cetus Guard 36665 | -5/Cetus | Discovered exit to Factory (range 15) 36673 | -5/Cetus | Met Revision 17 37011 | -5/Cetus | Identified exit to Archives 37061 | -5/Cetus | Security sweep announced 37121 | -5/Cetus | Murdered A7 37123 | -5/Cetus | Extracted ID and sensor layout for unrecognized location from A7's data core 37126 | -5/Cetus | Build established: Commander-Tank 37135 | -5/Cetus | Entered Archives 37135 | -5/Archives | Accompanied by 7 allies 37250 | -5/Archives | Lost 3 allies 37253 | -5/Archives | Discovered new exit (range 16) 37307 | -5/Archives | Discovered new exit (range 15) 37382 | -5/Archives | Discovered exit to Factory (range 15) 37429 | -5/Archives | Build established: Scavenger-Tank 37813 | -5/Archives | Build established: Scavenger-Mutant 37899 | -5/Archives | Identified exit to Hub_04(d) 38288 | -5/Archives | Entered Hub_04(d) 38288 | -5/Hub_04(d) | Accompanied by 4 allies 38288 | -5/Hub_04(d) | Discovered exit to Factory (range 10) 38440 | -5/Hub_04(d) | Build established: Scavenger-Tank 38514 | -5/Hub_04(d) | Discovered exit to Factory (range 12) 39148 | -5/Hub_04(d) | Network Hub disabled 39178 | -5/Hub_04(d) | Spotted Lightning 39179 | -5/Hub_04(d) | Spotted Lightning 39182 | -5/Hub_04(d) | Spotted Lightning 39187 | -5/Hub_04(d) | Destroyed Lightning 39190 | -5/Hub_04(d) | System corruption reached 10% 39197 | -5/Hub_04(d) | Destroyed Lightning 39204 | -5/Hub_04(d) | Lost 3 allies 39207 | -5/Hub_04(d) | Destroyed Lightning 39213 | -5/Hub_04(d) | Garrison activated, responded to threat 39281 | -5/Hub_04(d) | Network Hub disabled 39311 | -5/Hub_04(d) | Found Prototype Device 39311 | -5/Hub_04(d) | Identified Exp. EM Shield 39314 | -5/Hub_04(d) | Spotted Lightning 39316 | -5/Hub_04(d) | Spotted Lightning 39319 | -5/Hub_04(d) | Spotted Lightning 39326 | -5/Hub_04(d) | Garrison activated, responded to threat 39339 | -5/Hub_04(d) | Destroyed Lightning 39365 | -5/Hub_04(d) | Destroyed Lightning 39418 | -5/Hub_04(d) | Destroyed Lightning 39488 | -5/Hub_04(d) | First assault squad dispatched 39493 | -5/Hub_04(d) | Entered Factory 39493 | -4/Factory | Evolved 2 slots: Propulsion x1, Utility x1 39495 | -4/Factory | Loaded intel: 26 terminal locations 39542 | -4/Factory | Central database locked down 39577 | -4/Factory | Identified exit to Upper Caves 39892 | -4/Factory | Found Quantum Capacitor 40526 | -4/Factory | Discovered new exit (range 7) 40615 | -4/Factory | Repaired Broken Centrium Heavy Treads 40705 | -4/Factory | Identified exit to Research 41113 | -4/Factory | Unchained authorized (BL-1NK) 41130 | -4/Factory | Entered Upper Caves 41416 | -4/Upper Caves | Attracted the attention of an 0b10 checkpoint 41755 | -4/Upper Caves | Learned 4 Research zone layouts 42150 | -4/Upper Caves | Discovered new exit (range 14) 42175 | -4/Upper Caves | Identified exit to Upper Caves 42230 | -4/Upper Caves | Entered another Upper Caves area 42257 | -4/Upper Caves | Encountered a Warlord checkpoint 42397 | -4/Upper Caves | Discovered exit to Research (range 8) 42521 | -4/Upper Caves | Build established: Tank 43058 | -4/Upper Caves | Build established: Scavenger-Tank 43211 | -4/Upper Caves | Discovered new exit (range 16) 43233 | -4/Upper Caves | Identified exit to Warlord 43431 | -4/Upper Caves | Entered Warlord 43470 | -4/Warlord | Discovered new exit (range 15) 44079 | -4/Warlord | Learned Quarantine stockpile data 44081 | -4/Warlord | Learned 4 Research zone layouts 44081 | -4/Warlord | Learned 4 Access zone layouts 44082 | -4/Warlord | Learned Factory repair station intel 44082 | -4/Warlord | Learned Research terminal intel 44082 | -4/Warlord | Learned Research fabricator intel 44082 | -4/Warlord | Learned Research repair station intel 44189 | -4/Warlord | Warlord's base attacked by MAIN.C 44228 | -4/Warlord | Found Prototype Energy Cannon 44228 | -4/Warlord | Identified Vortex Cannon 44232 | -4/Warlord | Found Prototype Energy Cannon 44232 | -4/Warlord | Identified Vortex Driver 44238 | -4/Warlord | Found Vortex Driver 44269 | -4/Warlord | Build established: Commander-Tank 44408 | -4/Warlord | Opened Warlord's prototype stash 44412 | -4/Warlord | Found Prototype Reactor 44412 | -4/Warlord | Identified Vortex Chain Reactor 44434 | -4/Warlord | Found Prototype Processor 44434 | -4/Warlord | Identified Spectral Analyzer 44496 | -4/Warlord | Found Prototype Device 44496 | -4/Warlord | Identified Minesniffer Drone Bay 44539 | -4/Warlord | Warlord forces counterattacked 44601 | -4/Warlord | Met Warlord 44680 | -4/Warlord | Spotted Executioner 44701 | -4/Warlord | Allies destroyed Executioner 44756 | -4/Warlord | Lost 12 allies 44808 | -4/Warlord | Spotted B-90 Cyclops 44821 | -4/Warlord | Spotted B-86 Titan 44826 | -4/Warlord | Destroyed B-90 Cyclops 44848 | -4/Warlord | Destroyed B-86 Titan 44864 | -4/Warlord | Warlord base infiltrated, sounded retreat 44883 | -4/Warlord | Spotted Striker 44975 | -4/Warlord | Identified exit to Proximity Caves 44989 | -4/Warlord | Spotted Executioner 44989 | -4/Warlord | Entered Proximity Caves 44991 | -3/Proximity Caves | Spotter reported a threat 45131 | -3/Proximity Caves | Build established: Scavenger-Tank 45583 | -3/Proximity Caves | Discovered exit to Research (range 5) 45796 | -3/Proximity Caves | Build established: Derelict-Tank 46110 | -3/Proximity Caves | Entered Research 46110 | -3/Research | Evolved 2 slots: Utility x2 46112 | -3/Research | Loaded intel: 22 terminal locations 46113 | -3/Research | Loaded intel: 4 fabricator locations 46114 | -3/Research | Loaded intel: 4 repair station locations 46163 | -3/Research | Found Fusion Bomb Launcher 46287 | -3/Research | Discovered new exit (range 5) 46292 | -3/Research | Identified exit to Research 46310 | -3/Research | Revision forces began assault on 0b10 46403 | -3/Research | Build established: Scavenger-Tank 46418 | -3/Research | Met up with Revision 17++ 46810 | -3/Research | Research terminal network offline 47011 | -3/Research | Repaired Centrium Medium Armor Plating 47287 | -3/Research | Build established: Tank 47363 | -3/Research | Spotted Striker 47364 | -3/Research | Spotted Executioner 47375 | -3/Research | Destroyed Executioner 47461 | -3/Research | Discovered new exit (range 22) 47497 | -3/Research | Identified exit to Testing 47783 | -3/Research | Found Unknown Protection 47797 | -3/Research | Identified Adv. Powered Armor 47861 | -3/Research | Found Gamma Bomb Array 47971 | -3/Research | Spotted Executioner 47974 | -3/Research | Spotted Striker 47993 | -3/Research | P-80 Master assimilated allied Revision 48197 | -3/Research | Found Prototype Processor 48205 | -3/Research | Identified Exp. Target Analyzer 48266 | -3/Research | Found Prototype Processor 48279 | -3/Research | Identified Exp. Targeting Computer 48498 | -3/Research | Spotted Striker 48498 | -3/Research | Spotted Striker 48498 | -3/Research | Destroyed Striker 48582 | -3/Research | Discovered exit to Testing (range 14) 48749 | -3/Research | Repaired Centrium Heavy Treads? 48803 | -3/Research | Spotted Executioner 48803 | -3/Research | Spotted Striker 48820 | -3/Research | Destroyed Striker 48830 | -3/Research | Destroyed Executioner 48943 | -3/Research | Found Exp. Core Analyzer 48952 | -3/Research | Spotted Striker 48952 | -3/Research | Spotted Executioner 48955 | -3/Research | Destroyed Striker 48955 | -3/Research | Destroyed Executioner 48984 | -3/Research | Lost 3 allies 49005 | -3/Research | Found Exp. Core Analyzer 49068 | -3/Research | Spotted Striker 49071 | -3/Research | Spotted Striker 49079 | -3/Research | Destroyed Striker 49080 | -3/Research | Spotted Striker 49083 | -3/Research | Spotted Striker 49087 | -3/Research | Destroyed Striker 49090 | -3/Research | Destroyed Striker 49116 | -3/Research | Destroyed Striker 49125 | -3/Research | Spotted Striker 49138 | -3/Research | Destroyed Striker 49159 | -3/Research | Destroyed 10 combat bots 49300 | -3/Research | Build established: Scavenger-Tank 49411 | -3/Research | Entered Testing 49449 | -3/Testing | Found Prototype Processor 49455 | -3/Testing | Identified Exp. Melee Analysis Suite 49617 | -3/Testing | Unchained authorized (BL-1NK) 49676 | -3/Testing | Rewired PY-HUB6GIOAHT 49800 | -3/Testing | Found Gamma Bomb Array+ 49937 | -3/Testing | Found Prototype Protection 50173 | -3/Testing | Identified Centrium Heavy Armor Plating 50178 | -3/Testing | Discovered exit to Research (range 12) 50210 | -3/Testing | Found Prototype Device 50235 | -3/Testing | Identified Adv. Kinecellerator 50275 | -3/Testing | Found Prototype Processor 50286 | -3/Testing | Identified Exp. Signal Interpreter 50339 | -3/Testing | Central database locked down 50509 | -3/Testing | Repaired Arm. Medium Treads 50674 | -3/Testing | Destroyed BL-1NK 50696 | -3/Testing | Found ID Mask 51250 | -3/Testing | Entered Research 51250 | -2/Research | Warlord forces began assault on 0b10 51250 | -2/Research | Evolved 2 slots: Power x1, Utility x1 51275 | -2/Research | Distinguished unit "Lucky Slug" dispatched to help 51275 | -2/Research | Distinguished unit "Grunt Murderers" dispatched to help 51360 | -2/Research | Research machine network offline 51505 | -2/Research | Met up with Warlord 51635 | -2/Research | Met DD-05H 51670 | -2/Research | Borebot progress halted 51728 | -2/Research | Spotted Striker 51765 | -2/Research | Lost 6 allies 51862 | -2/Research | Borebot progress halted 52021 | -2/Research | Spotted Striker 52073 | -2/Research | Lost 3 allies 52142 | -2/Research | Discovered new exit (range 5) 52148 | -2/Research | Identified exit to Access 52152 | -2/Research | Borebot progress halted 52275 | -2/Research | Spotted Striker 52281 | -2/Research | Destroyed Striker 52492 | -2/Research | Spotted Executioner 52493 | -2/Research | Spotted Striker 52503 | -2/Research | Destroyed Striker 52517 | -2/Research | Destroyed Executioner 52646 | -2/Research | Discovered exit to Access (range 10) 52703 | -2/Research | Spotted Executioner 52704 | -2/Research | Destroyed Executioner 52705 | -2/Research | Spotted Executioner 52735 | -2/Research | Found Exp. Core Analyzer 52741 | -2/Research | Found Exp. Targeting Computer 52754 | -2/Research | Given Cave Seal Controls access code 52788 | -2/Research | Spotted Striker 52807 | -2/Research | Spotted Executioner 52812 | -2/Research | Spotted Executioner 52815 | -2/Research | Destroyed Executioner 52835 | -2/Research | Destroyed Executioner 52893 | -2/Research | Found Prototype Device 52893 | -2/Research | Identified Exp. Actuator Array 53032 | -2/Research | Build established: Scavenger-Gunner 53210 | -2/Research | Lost 6 allies 53289 | -2/Research | Spotted E7-08E(L) 53331 | -2/Research | Lost 6 allies 53380 | -2/Research | Found Exp. Core Analyzer 53470 | -2/Research | Discovered exit to Access (range 11) 53503 | -2/Research | Found Prototype Launcher 53503 | -2/Research | Identified Com. Tesla Bomb Launcher 53701 | -2/Research | Found Exp. Targeting Computer 53996 | -2/Research | Found Unknown Device 53996 | -2/Research | Identified Adv. Force Booster 54002 | -2/Research | Found Prototype Device 54002 | -2/Research | Identified Exp. Shock Absorption System 54088 | -2/Research | Found Prototype Device 54096 | -2/Research | Identified Exp. ECM Suite 54159 | -2/Research | Found Prototype Device 54159 | -2/Research | Identified Exp. Transmission Jammer 54347 | -2/Research | Discovered new exit (range 16) 54370 | -2/Research | Identified exit to Quarantine 54470 | -2/Research | Build established: Scavenger-Tank 54827 | -2/Research | Attacked by Warlord forces 54827 | -2/Research | Spotted A5-OL5(g) 54832 | -2/Research | Spotted 5F-L27(L) 54855 | -2/Research | Allies destroyed 5F-L27(L) 54886 | -2/Research | Entered Quarantine 54937 | -2/Quarantine | Central database locked down 54973 | -2/Quarantine | Found Alien Slashing Weapon 54989 | -2/Quarantine | Found Alien Artifact 55024 | -2/Quarantine | Found Alien Artifact 55024 | -2/Quarantine | Identified Core Reset Matrix 55024 | -2/Quarantine | Identified Sigix Broadsword 55024 | -2/Quarantine | Identified Phase Redirector 55024 | -2/Quarantine | Used Core Reset Matrix 55028 | -2/Quarantine | Detected hypermatrix surge 55028 | -2/Quarantine | Sensed 12 artifacts in vicinity 55036 | -2/Quarantine | Cryocooling Duct disabled 55051 | -2/Quarantine | Ambient heat levels rising (+20) 55051 | -2/Quarantine | Non-combat units ordered to evacuate 55109 | -2/Quarantine | Found Subatomic Replicator 55308 | -2/Quarantine | Found Core Cannon 55391 | -2/Quarantine | Found Phase Armor 55540 | -2/Quarantine | Found Hpw. Transdimensional Reconstructor 55544 | -2/Quarantine | Found Hpw. Transdimensional Reconstructor 56045 | -2/Quarantine | Repaired Exp. Cooling System 56081 | -2/Quarantine | System corruption reached 10% 56324 | -2/Quarantine | ID Mask engaged 56326 | -2/Quarantine | Spotted Fortress 56441 | -2/Quarantine | Discovered new exit (range 6) 56441 | -2/Quarantine | Discovered new exit (range 7) 56447 | -2/Quarantine | Identified exit to Section 7 56449 | -2/Quarantine | Entered Section 7 56450 | -2/Section 7 | Detected hypermatrix surge 56450 | -2/Section 7 | Sensed 19 artifacts in vicinity 56517 | -2/Section 7 | Spotted S7 Guard 56555 | -2/Section 7 | ID Mask no longer valid 56571 | -2/Section 7 | Central database locked down 56964 | -2/Section 7 | Found Spacefold Activator 57086 | -2/Section 7 | Destroyed 7 combat bots 57429 | -2/Section 7 | Found Integrity Redistributor 57470 | -2/Section 7 | Build established: Tank 57520 | -2/Section 7 | Found Microwarp Drive 57614 | -2/Section 7 | Spotted Alpha 7 57614 | -2/Section 7 | Spotted Alpha 7 57624 | -2/Section 7 | Spotted B-99 Colossus 57699 | -2/Section 7 | First assault squad dispatched 57732 | -2/Section 7 | Destroyed Alpha 7 57768 | -2/Section 7 | Destroyed Alpha 7 57857 | -2/Section 7 | Scanned by Researcher 57875 | -2/Section 7 | Found LRC Energy Well 57875 | -2/Section 7 | Installed LRC Energy Well, increased energy storage capacity (+250) 57891 | -2/Section 7 | Used Subatomic Replicator to replicate Centrium Heavy Treads 57943 | -2/Section 7 | Intercept squad dispatched 57955 | -2/Section 7 | System corruption reached 30% 57958 | -2/Section 7 | Spotted Tracker 57958 | -2/Section 7 | Spotted Tracker 57980 | -2/Section 7 | Core integrity fell below 50% 57984 | -2/Section 7 | Spotted Combat Programmer 57985 | -2/Section 7 | Spotted Combat Programmer 58023 | -2/Section 7 | Entered Access 58023 | -1/Access | Evolved 2 slots: Utility x1, Weapon x1 58040 | -1/Access | Lost 5 parts (1p1n1u2w) 58244 | -1/Access | System corruption reached 10% 58293 | -1/Access | Lost 3 parts (1n2u) 58330 | -1/Access | Build established: Scavenger-Mutant 58452 | -1/Access | Warped through subspace 58543 | -1/Access | Discovered new exit (range 7) 58552 | -1/Access | Identified exit to Surface 58553 | -1/Access | Used Integrity Redistributor, redistributed integrity from core (-405) 58563 | -1/Access | Spotted B-99 Colossus 58571 | -1/Access | Core integrity fell below 50% 58618 | -1/Access | Destroyed B-99 Colossus 58640 | *** | Heading to fleet! Last Messages --------------- 58613_ Beam penetrates B-99 Colossus. 58613_ B-99 Colossus suffers critical hit (Destroy). 58613_ Destroyed Unknown Treads. 58613_ Beam penetrates B-99 Colossus. 58613_ Penetrated by Slug. 58616_ Slug penetrates Sealed Barrier. 58617_ B-99 Colossus exits siege mode. 58617_ Dropped Exp. Energy Well. 58618_ Extracted 600 energy. 58618_ Beam penetrates B-99 Colossus. 58618_ B-99 Colossus destroyed. 58619_ Acquired Exp. Energy Well. 58622_ System corrupted: Heat flow error (+205). 58627_ Ended siege mode. 58635_ K-01 Serf collects debris. [Achievement: Winner's Signature] [Achievement: Victory By Combat] [Achievement: On My Own Terms] [Achievement: Overachiever] Map ----- +----------------------------------------------------+ | ?????????????????????????????????????????????????? | | ?????????????????????????????????????????????????? | | ?????????????????????????????????????????????????? | | ?????????????????????????????????????????????????? | | ?????????????????????????????????????????????????? | | ?????????????????????????????????????????????????? | | ?????????????????????????????????????????????????? | | ??????????????????????? ???????????????????????? | | ??????????????????????? ???????????????????????? | | ??????????????????????? ???????????????????????? | | ??????????????????????? ???????????????????????? | | ??????????????????????? ?? ????????????????????? | | ??????????????????????? ? ????????????????????? | | ??????????????????????? u ????????????????????? | | ?????????????????????BB ? ????????????????????? | | ?????????????????????BB ? ????????????????????? | | ??????????????????????? ? ????????????????????? | | ???????????????????????" "? "????????????????????? | | ???????????????????????" "? "????????????????????? | | ???????????????????????" "" "??????????????? ???? | | ?????????????????????""" "" ""#????????????? ???? | | ?????????????????????? #????????????? ???? | | ??????????????????????"" "" #????????????# #??? | | ??????????????????????" #????????????# #??? | | ???????????????????#??" "" #????????????# #??? | | ???????????????????# ?" "@ #????????????# #??? | | ???????????????????# " #????????????# #??? | | ???????????????????# ""k"" #???########## #??? | | ???????????????????# % #???# # #?? | | ???????????????????# %%% %#???# # #?? | | ???????????????????""""" """"""???# # #? | | ???????????????????#"" #???# # #? | | ???????????????????#"" #???# # # | | ???????????????????#"" #???# === # # | | ???????????????????#T #???# == + + | | ???????????????????#"" #???# == # # | | ???????????????????#"" #???# # #### | | ???????????????????#"" ############## | | ?????????????? #### | | ?????????????? #??? | | ??????????????############################+#####?? | | ?????????????????????????????????????# #?? | | ?????????????????????????????????????# ### | | ?????????????????????????????????????# ## | | ?????????????????????????????????????# " " ## | | ?????????????????????????????????????# "!" ## | | ?????????????????????????????????????# ""G"" #? | | ?????????????????????????????????????# #?? | | ?????????????????????????????????????# #?? | | ?????????????????????????????????????###########?? | +----------------------------------------------------+ Best States ------------- Heat Dissipation 128 Energy Generation 73 Energy Capacity 1450 Matter Stores 550 Matter Capacity 550 Sight Range 23 Robot Scan Range 20 Terrain Scan Range 16 Terrain Scan Density 10 Jamming Range 22 Power Amplification 20 Armor Coverage 1200 Resistance: TH 15 Resistance: EM 75 Core Shielding 20 Weapon Cycling 20 Phase Shifting 10 Evasion (%) 55 Targeting Accuracy 12 Core Analysis 12 Armor Integrity Analysis 40 Recoil Reduction 6 Energy Filtering 50 Kinecelleration 50 Force Boost 40 Offensive Hacking 12 Authchip Count 2 Item Schematics ----------------- None Robot Schematics ------------------ None Fabricated ------------ Multireflex Exoskeleton | x1 | -6/Factory Repaired ---------- Lgt. Treads | 70% | -10/Materials Hcp. Storage Unit | 86% | -9/Materials Lgt. Treads | 5% | -8/Materials Exp. Sensor Array | 62% | -8/Materials Centrium Heavy Treads | 6% | -4/Factory | Broken Centrium Medium Armor Plating | 58% | -3/Research Centrium Heavy Treads | 22% | -3/Research Arm. Medium Treads | 38% | -3/Testing Exp. Cooling System | 27% | -2/Quarantine Studied --------- Rnf. Quantum Reactor | -2/Section 7 | Hacked Enh. Nova Cannon | -2/Section 7 | Hacked Alien Tech Used ----------------- Core Reset Matrix Microwarp Drive LRC Energy Well Subatomic Replicator High-powered Transdimensional Reconstructor Core Cannon Integrity Redistributor Achievements -------------- Betrayal Most Foul Bigger And Badder Coming In Hot Gun Specialist Hard Hitter King Drone On My Own Terms Overachiever Signature Confirmed Victory By Combat Vwoop! Wiki Contributor Winner's Signature Challenges ------------ None Game ------ Seed SpikedPotentialRay Manual? 0 Play Time 11:34:34 Cumulative 137.6 hours Start 2026.02.26 @ 23:29:22 End 2026.03.02 @ 02:54:13 Sessions 37 Manual Loads 0 Difficulty Rogue Special Mode None Game No. 101 Rogue 101 Adventurer 0 Explorer 0 Win Type 2 Total 15 Types 11/0/2/1/0/0/0/1/0/0 Lore% 55 Gallery% 55 Achievement% 52 Wizard Run 0 Options --------- Layout 2 ASCII 0 Keyboard 1 Movement Numpad Keybinds 0 Fullscreen 2 Font 24/Terminus Map View 50x44 Zoom Use 0% Tactical HUD 1 Map Filters NONE Filters NONE Steam 1 RUN: b92eb2ae-100e-4023-95aa-052a29212291